Body,Body name,Date,Transaction number,Amount,Non recoverable VAT included in amount,Supplier name,Supplier ID,Expense area,Fund type,Expense type,Category description
http://thanet.gov.uk/supplierspend,Thanet District Council,06/01/2015,375447,813.95,,Albion Fencing&Construction Kent Ltd,ALB005,Operational Services,Revenue,"Repairs,  Alter & Mtce - Build",Building Construction Material
http://thanet.gov.uk/supplierspend,Thanet District Council,06/01/2015,375134,2500.00,,Campbell Reith Hill Llp,CAM013,Corporate Resources and S151,Balance Sheet,Investment Property For Lease,Consultancy
http://thanet.gov.uk/supplierspend,Thanet District Council,06/01/2015,375892,243.30,,Casement Signs And Traffic,CAS001,Operational Services,Revenue,"Repairs,  Alter & Mtce - Build",Street And Traffic Management
http://thanet.gov.uk/supplierspend,Thanet District Council,06/01/2015,375563,341.48,,Caxtons,CAX005,Community Services,Revenue,Rents,Facilities And Mangement Serv
http://thanet.gov.uk/supplierspend,Thanet District Council,06/01/2015,375411,630.00,,Child Poverty Action Group,CPA001,East Kent Shared Services,Revenue,"Print, Stat And Gen Off Exps",Financial Services
http://thanet.gov.uk/supplierspend,Thanet District Council,06/01/2015,375224,671.10,,City Electrical Factors Ltd,CIT001,Operational Services,Revenue,"Equip, Furniture And Materials",Building Construction Material
http://thanet.gov.uk/supplierspend,Thanet District Council,06/01/2015,375224,18.61,,City Electrical Factors Ltd,CIT001,Operational Services,Revenue,"Repairs,  Alter & Mtce - Build",Building Construction Material
http://thanet.gov.uk/supplierspend,Thanet District Council,06/01/2015,375551,2821.00,,Commercial Services Trading Ltd,COM048,Operational Services,Revenue,Cont Hire & Operating Lease,Various Cats-Public Sector
http://thanet.gov.uk/supplierspend,Thanet District Council,06/01/2015,375688,2473.00,,Commercial Services Trading Ltd,COM048,Operational Services,Revenue,Cont Hire & Operating Lease,Various Cats-Public Sector
http://thanet.gov.uk/supplierspend,Thanet District Council,06/01/2015,375689,2528.00,,Commercial Services Trading Ltd,COM048,Operational Services,Revenue,Cont Hire & Operating Lease,Various Cats-Public Sector
http://thanet.gov.uk/supplierspend,Thanet District Council,06/01/2015,375690,2473.00,,Commercial Services Trading Ltd,COM048,Operational Services,Revenue,Cont Hire & Operating Lease,Various Cats-Public Sector
http://thanet.gov.uk/supplierspend,Thanet District Council,06/01/2015,375233,354.56,,D & S Supplies,DSS002,Operational Services,Revenue,Direct Transport Costs,Vehicle Management
http://thanet.gov.uk/supplierspend,Thanet District Council,06/01/2015,375197,1637.00,,Dover District Council,DOV001,Corporate Resources and S151,Revenue,Training,Various Cats-Public Sector
http://thanet.gov.uk/supplierspend,Thanet District Council,06/01/2015,375399,675.00,,Dr Alexander Marshall,MAR100,Operational Services,Revenue,Services,Cemetery And Crematorium
http://thanet.gov.uk/supplierspend,Thanet District Council,06/01/2015,375236,1220.07,,E Saunders Margate Ltd,SAU001,Operational Services,Revenue,"Equip, Furniture And Materials",Construction-Repair And Maint
http://thanet.gov.uk/supplierspend,Thanet District Council,06/01/2015,375583,601.51,,E Saunders Margate Ltd,SAU001,Community Services,Revenue,"Repairs,  Alter & Mtce - Build",Construction-Repair And Maint
http://thanet.gov.uk/supplierspend,Thanet District Council,06/01/2015,375584,636.58,,E Saunders Margate Ltd,SAU001,Community Services,Revenue,"Repairs,  Alter & Mtce - Build",Construction-Repair And Maint
http://thanet.gov.uk/supplierspend,Thanet District Council,06/01/2015,375585,344.74,,E Saunders Margate Ltd,SAU001,Operational Services,Revenue,"Repairs,  Alter & Mtce - Build",Construction-Repair And Maint
http://thanet.gov.uk/supplierspend,Thanet District Council,06/01/2015,375718,631.00,,E Saunders Margate Ltd,SAU001,Corporate Resources and S151,Balance Sheet,Repairs And Mtce Holding A/C,Construction-Repair And Maint
http://thanet.gov.uk/supplierspend,Thanet District Council,06/01/2015,375983,2273.65,,Electoral Reform Services,ELE010,Corporate Resources and S151,Revenue,Communications & Computing,Facilities And Mangement Serv
http://thanet.gov.uk/supplierspend,Thanet District Council,06/01/2015,375983,1048.61,,Electoral Reform Services,ELE010,Corporate Resources and S151,Revenue,"Print, Stat And Gen Off Exps",Facilities And Mangement Serv
http://thanet.gov.uk/supplierspend,Thanet District Council,06/01/2015,375984,2728.94,,Electoral Reform Services,ELE010,Corporate Resources and S151,Revenue,Communications & Computing,Facilities And Mangement Serv
http://thanet.gov.uk/supplierspend,Thanet District Council,06/01/2015,375984,1246.24,,Electoral Reform Services,ELE010,Corporate Resources and S151,Revenue,"Print, Stat And Gen Off Exps",Facilities And Mangement Serv
http://thanet.gov.uk/supplierspend,Thanet District Council,06/01/2015,375604,538.99,,Electrical Lighting Solutions Ltd,ELE013,Operational Services,Revenue,"Repairs,  Alter & Mtce - Build",Building Construction Material
http://thanet.gov.uk/supplierspend,Thanet District Council,06/01/2015,375446,356.20,,Evoke Supplies Limited,EVO001,Operational Services,Revenue,"Repairs,  Alter & Mtce - Build",Building Construction Material
http://thanet.gov.uk/supplierspend,Thanet District Council,06/01/2015,375448,1710.00,,Fleet (Line Markers) Ltd,FLE008,Operational Services,Revenue,"Equip, Furniture And Materials",Horticultural
http://thanet.gov.uk/supplierspend,Thanet District Council,06/01/2015,375135,8000.00,,Gardiner & Theobald Llp,GAR020,Corporate Resources and S151,Balance Sheet,Investment Property For Lease,Consultancy
http://thanet.gov.uk/supplierspend,Thanet District Council,06/01/2015,375136,3000.00,,Gardiner & Theobald Llp,GAR020,Corporate Resources and S151,Balance Sheet,Investment Property For Lease,Consultancy
http://thanet.gov.uk/supplierspend,Thanet District Council,06/01/2015,375247,2400.00,,Gardiner & Theobald Llp,GAR020,Corporate Resources and S151,Balance Sheet,Investment Property For Lease,Consultancy
http://thanet.gov.uk/supplierspend,Thanet District Council,06/01/2015,375872,51500.00,,Gem Mc Limited,GEM009,Corporate Resources and S151,Balance Sheet,Plant And Equipment,Arts And Leisure Services
http://thanet.gov.uk/supplierspend,Thanet District Council,06/01/2015,375922,2165.00,,Grammer & Company Limited,GRA024,Operational Services,Revenue,Miscellaneous Expenses,Facilities And Mangement Serv
http://thanet.gov.uk/supplierspend,Thanet District Council,06/01/2015,375439,770.00,,Gulliver's Truck Hire Limited,GUL001,Operational Services,Revenue,Cont Hire & Operating Lease,Vehicle Management
http://thanet.gov.uk/supplierspend,Thanet District Council,06/01/2015,375119,5000.00,,Guy Hollaway Architects Llp,HOL024,Corporate Resources and S151,Balance Sheet,Investment Property For Lease,Construction-Repair And Maint
http://thanet.gov.uk/supplierspend,Thanet District Council,06/01/2015,375817,282.50,,Heidelberg Graphic Equipment Ltd,HEI002,Community Services,Revenue,"Equip, Furniture And Materials",Facilities And Mangement Serv
http://thanet.gov.uk/supplierspend,Thanet District Council,06/01/2015,375784,650.00,,Hi Way Services Ltd,HIW002,Operational Services,Revenue,"Repairs,  Alter & Mtce - Build",Highway Equipment And Material
http://thanet.gov.uk/supplierspend,Thanet District Council,06/01/2015,375786,650.00,,Hi Way Services Ltd,HIW002,Operational Services,Revenue,"Repairs,  Alter & Mtce - Build",Highway Equipment And Material
http://thanet.gov.uk/supplierspend,Thanet District Council,06/01/2015,375147,646.34,,Hr Go Recruitment Ltd,HRG002,Operational Services,Revenue,Agency Staff,Human Resources
http://thanet.gov.uk/supplierspend,Thanet District Council,06/01/2015,375610,355.81,,Hr Go Recruitment Ltd,HRG002,Community Services,Revenue,Agency Staff,Human Resources
http://thanet.gov.uk/supplierspend,Thanet District Council,06/01/2015,375962,287.04,,Hr Go Recruitment Ltd,HRG002,Community Services,Revenue,Agency Staff,Human Resources
http://thanet.gov.uk/supplierspend,Thanet District Council,06/01/2015,375412,3115.00,,Inovem Limited,INO001,Community Services,Revenue,Communications & Computing,ICT
http://thanet.gov.uk/supplierspend,Thanet District Council,06/01/2015,373462,239.93,,Insight Direct (Uk) Ltd,INS013,East Kent Shared Services,Revenue,Communications & Computing,ICT
http://thanet.gov.uk/supplierspend,Thanet District Council,06/01/2015,375553,1050.00,,Irrv,IRR002,East Kent Shared Services,Revenue,Expenses,Human Resources
http://thanet.gov.uk/supplierspend,Thanet District Council,06/01/2015,375808,240.83,,Jewson Ltd,JEW001,Operational Services,Revenue,"Equip, Furniture And Materials",Building Construction Material
http://thanet.gov.uk/supplierspend,Thanet District Council,06/01/2015,375587,18133.00,,John H Rundle Limited,RUN006,Corporate Resources and S151,Balance Sheet,Other Land And Buildings-Hra,Building Construction Material
http://thanet.gov.uk/supplierspend,Thanet District Council,06/01/2015,375445,1775.00,,Jump It Recruitment Solutions Ltd,JUM001,East Kent Shared Services,Revenue,Agency Staff,Human Resources
http://thanet.gov.uk/supplierspend,Thanet District Council,06/01/2015,375673,3087.00,,Kent County Council,KCC002,Community Services,Revenue,Services,Various Cats-Public Sector
http://thanet.gov.uk/supplierspend,Thanet District Council,06/01/2015,375426,1477.46,,Kent County Council (Kcs),KCC003,Operational Services,Revenue,Energy Costs,Facilities And Mangement Serv
http://thanet.gov.uk/supplierspend,Thanet District Council,06/01/2015,375428,1309.94,,Kent County Council (Kcs),KCC003,Operational Services,Revenue,Energy Costs,Facilities And Mangement Serv
http://thanet.gov.uk/supplierspend,Thanet District Council,06/01/2015,375429,1018.30,,Kent County Council (Kcs),KCC003,Operational Services,Revenue,Energy Costs,Facilities And Mangement Serv
http://thanet.gov.uk/supplierspend,Thanet District Council,06/01/2015,375430,1407.57,,Kent County Council (Kcs),KCC003,Operational Services,Revenue,Energy Costs,Facilities And Mangement Serv
http://thanet.gov.uk/supplierspend,Thanet District Council,06/01/2015,375458,30450.79,,Kent County Council (Kcs),KCC003,Operational Services,Revenue,Direct Transport Costs,Facilities And Mangement Serv
http://thanet.gov.uk/supplierspend,Thanet District Council,06/01/2015,375459,3346.95,,Kent County Council (Kcs),KCC003,Operational Services,Revenue,Direct Transport Costs,Facilities And Mangement Serv
http://thanet.gov.uk/supplierspend,Thanet District Council,06/01/2015,375876,-1745.13,,Kent County Council (Kcs),KCC003,Community Services,Revenue,Energy Costs,Facilities And Mangement Serv
http://thanet.gov.uk/supplierspend,Thanet District Council,06/01/2015,375877,-1647.43,,Kent County Council (Kcs),KCC003,Operational Services,Revenue,Energy Costs,Facilities And Mangement Serv
http://thanet.gov.uk/supplierspend,Thanet District Council,06/01/2015,375878,-319.63,,Kent County Council (Kcs),KCC003,Operational Services,Revenue,Energy Costs,Facilities And Mangement Serv
http://thanet.gov.uk/supplierspend,Thanet District Council,06/01/2015,375879,-516.60,,Kent County Council (Kcs),KCC003,Operational Services,Revenue,Energy Costs,Facilities And Mangement Serv
http://thanet.gov.uk/supplierspend,Thanet District Council,06/01/2015,375882,-303.72,,Kent County Council (Kcs),KCC003,Operational Services,Revenue,Energy Costs,Facilities And Mangement Serv
http://thanet.gov.uk/supplierspend,Thanet District Council,06/01/2015,375691,400.00,,Km Media Group Limited,KMM001,Community Services,Revenue,Miscellaneous Expenses,Facilities And Mangement Serv
http://thanet.gov.uk/supplierspend,Thanet District Council,06/01/2015,375667,2000.00,,Kpmg Llp Fees Account,KPM001,Corporate Resources and S151,Revenue,Services,Financial Services
http://thanet.gov.uk/supplierspend,Thanet District Council,06/01/2015,375566,274.50,,Lexisnexis Uk,LEX002,Community Services,Revenue,"Print, Stat And Gen Off Exps",Human Resources
http://thanet.gov.uk/supplierspend,Thanet District Council,06/01/2015,375567,279.95,,Lexisnexis Uk,LEX002,Corporate Resources and S151,Revenue,"Print, Stat And Gen Off Exps",Human Resources
http://thanet.gov.uk/supplierspend,Thanet District Council,06/01/2015,374883,316.00,,Ling Metals Limited,LIN004,Operational Services,Revenue,Cleaning & Domestic Supplies,Environmental Services
http://thanet.gov.uk/supplierspend,Thanet District Council,06/01/2015,374883,325.00,,Ling Metals Limited,LIN004,Operational Services,Revenue,"Repairs,  Alter & Mtce - Build",Environmental Services
http://thanet.gov.uk/supplierspend,Thanet District Council,06/01/2015,375559,443.72,,Lister Wilder Limited,LIS002,Operational Services,Revenue,"Equip, Furniture And Materials",Horticultural
http://thanet.gov.uk/supplierspend,Thanet District Council,06/01/2015,375734,537.80,,Loomis Uk Ltd,LOO002,Operational Services,Revenue,Services,Financial Services
http://thanet.gov.uk/supplierspend,Thanet District Council,06/01/2015,375433,387.70,,Lyreco Uk Limited,LYR001,Community Services,Revenue,"Print, Stat And Gen Off Exps",Stationery
http://thanet.gov.uk/supplierspend,Thanet District Council,06/01/2015,375211,400.00,,Maxwells Grounds Maintenance Ltd,MAX002,Operational Services,Revenue,"Repairs,  Alter & Mtce - Build",Construction-Repair And Maint
http://thanet.gov.uk/supplierspend,Thanet District Council,06/01/2015,375638,1173.00,,Meridian Membranes,MER018,Corporate Resources and S151,Balance Sheet,Repairs And Mtce Holding A/C,Building Construction Material
http://thanet.gov.uk/supplierspend,Thanet District Council,06/01/2015,375916,3267.00,,Michael Page Int Recruitment Ltd,PAG008,Corporate Resources and S151,Revenue,Services,Human Resources
http://thanet.gov.uk/supplierspend,Thanet District Council,06/01/2015,375924,360.00,,Michael Page Int Recruitment Ltd,PAG008,Corporate Resources and S151,Revenue,Services,Human Resources
http://thanet.gov.uk/supplierspend,Thanet District Council,06/01/2015,375987,2450.25,,Michael Page Int Recruitment Ltd,PAG008,Corporate Resources and S151,Revenue,Services,Human Resources
http://thanet.gov.uk/supplierspend,Thanet District Council,06/01/2015,375402,425.10,,Morgan Jones Ltd,MOR001,Corporate Resources and S151,Revenue,Agency Staff,Human Resources
http://thanet.gov.uk/supplierspend,Thanet District Council,06/01/2015,375953,212.55,,Morgan Jones Ltd,MOR001,Corporate Resources and S151,Revenue,Services,Human Resources
http://thanet.gov.uk/supplierspend,Thanet District Council,06/01/2015,375953,212.55,,Morgan Jones Ltd,MOR001,Community Services,Revenue,Services,Human Resources
http://thanet.gov.uk/supplierspend,Thanet District Council,06/01/2015,376016,3941.30,,National Express Ltd,NAT010,Community Services,Revenue,Services,Agency Payments
http://thanet.gov.uk/supplierspend,Thanet District Council,06/01/2015,375169,1300.00,,Ovenden Plant Hire Ltd,OVE002,Operational Services,Revenue,Cont Hire & Operating Lease,Vehicle Management
http://thanet.gov.uk/supplierspend,Thanet District Council,06/01/2015,375404,90.00,,Parkeon Limited,PAR063,Community Services,Revenue,"Equip, Furniture And Materials",Street And Traffic Management
http://thanet.gov.uk/supplierspend,Thanet District Council,06/01/2015,375404,576.00,,Parkeon Limited,PAR063,Operational Services,Revenue,"Equip, Furniture And Materials",Street And Traffic Management
http://thanet.gov.uk/supplierspend,Thanet District Council,06/01/2015,375425,395.00,,Playsafety Limited,PLA023,Corporate Resources and S151,Balance Sheet,Plant And Equipment,Health And Safety
http://thanet.gov.uk/supplierspend,Thanet District Council,06/01/2015,375425,175.00,,Playsafety Limited,PLA023,Operational Services,Revenue,"Repairs,  Alter & Mtce - Build",Health And Safety
http://thanet.gov.uk/supplierspend,Thanet District Council,06/01/2015,375862,315.00,,R Cannon,CAN007,Operational Services,Revenue,Services,Maritime Services
http://thanet.gov.uk/supplierspend,Thanet District Council,06/01/2015,375970,2090.00,,Rentokil Initial Uk Ltd,REN002,Community Services,Revenue,"Repairs,  Alter & Mtce - Build",Cleaning And Janitorial
http://thanet.gov.uk/supplierspend,Thanet District Council,06/01/2015,375181,400.00,,Rippleffect,RIP001,Community Services,Revenue,Communications & Computing,ICT
http://thanet.gov.uk/supplierspend,Thanet District Council,06/01/2015,375772,3353.73,,Royal Mail,ROY004,Community Services,Revenue,Communications & Computing,Mail Services
http://thanet.gov.uk/supplierspend,Thanet District Council,06/01/2015,375630,4600.00,,Savills (Uk) Limited,SAV007,Corporate Resources and S151,Balance Sheet,Repairs And Mtce Holding A/C,Facilities And Mangement Serv
http://thanet.gov.uk/supplierspend,Thanet District Council,06/01/2015,375620,900.00,,Sellick Partnership Ltd,SEL011,Community Services,Revenue,Services,Human Resources
http://thanet.gov.uk/supplierspend,Thanet District Council,06/01/2015,375927,813.75,,Sellick Partnership Ltd,SEL011,Corporate Resources and S151,Revenue,Agency Staff,Human Resources
http://thanet.gov.uk/supplierspend,Thanet District Council,06/01/2015,375935,2044.50,,Sellick Partnership Ltd,SEL011,Corporate Resources and S151,Revenue,Services,Human Resources
http://thanet.gov.uk/supplierspend,Thanet District Council,06/01/2015,375991,1044.00,,Sellick Partnership Ltd,SEL011,Corporate Resources and S151,Revenue,Services,Human Resources
http://thanet.gov.uk/supplierspend,Thanet District Council,06/01/2015,375618,3132.35,,Shoreline Surveys Limited,SHO001,Operational Services,Revenue,"Repairs,  Alter & Mtce - Build",Maritime Services
http://thanet.gov.uk/supplierspend,Thanet District Council,06/01/2015,374346,2644.14,,Southern Electric,SEL007,Community Services,Revenue,Energy Costs,Utilities
http://thanet.gov.uk/supplierspend,Thanet District Council,06/01/2015,374762,1391.37,,Southern Electric,SEL007,Operational Services,Revenue,Energy Costs,Utilities
http://thanet.gov.uk/supplierspend,Thanet District Council,06/01/2015,374785,384.09,,Southern Electric,SEL007,Community Services,Revenue,Energy Costs,Utilities
http://thanet.gov.uk/supplierspend,Thanet District Council,06/01/2015,375357,-2644.14,,Southern Electric,SEL007,Community Services,Revenue,Energy Costs,Utilities
http://thanet.gov.uk/supplierspend,Thanet District Council,06/01/2015,375364,455.21,,Southern Electric,SEL007,Community Services,Revenue,Energy Costs,Utilities
http://thanet.gov.uk/supplierspend,Thanet District Council,06/01/2015,375384,610.33,,Southern Electric,SEL007,Community Services,Revenue,Energy Costs,Utilities
http://thanet.gov.uk/supplierspend,Thanet District Council,06/01/2015,375389,5441.75,,Southern Electric,SEL007,Community Services,Revenue,Energy Costs,Utilities
http://thanet.gov.uk/supplierspend,Thanet District Council,06/01/2015,375390,2744.25,,Southern Electric,SEL007,Community Services,Revenue,Energy Costs,Utilities
http://thanet.gov.uk/supplierspend,Thanet District Council,06/01/2015,375391,1071.61,,Southern Electric,SEL007,Operational Services,Revenue,Energy Costs,Utilities
http://thanet.gov.uk/supplierspend,Thanet District Council,06/01/2015,375393,-1391.37,,Southern Electric,SEL007,Operational Services,Revenue,Energy Costs,Utilities
http://thanet.gov.uk/supplierspend,Thanet District Council,06/01/2015,375697,346.52,,Southern Electric,SEL007,Community Services,Revenue,Energy Costs,Utilities
http://thanet.gov.uk/supplierspend,Thanet District Council,06/01/2015,375699,-384.09,,Southern Electric,SEL007,Community Services,Revenue,Energy Costs,Utilities
http://thanet.gov.uk/supplierspend,Thanet District Council,06/01/2015,375367,1043.64,,Southern Water,SWA001,Operational Services,Revenue,Water Services,Utilities
http://thanet.gov.uk/supplierspend,Thanet District Council,06/01/2015,375369,1629.04,,Southern Water,SWA001,Operational Services,Revenue,Water Services,Utilities
http://thanet.gov.uk/supplierspend,Thanet District Council,06/01/2015,375370,263.19,,Southern Water,SWA001,Operational Services,Revenue,Water Services,Utilities
http://thanet.gov.uk/supplierspend,Thanet District Council,06/01/2015,375371,1197.02,,Southern Water,SWA001,Operational Services,Revenue,Water Services,Utilities
http://thanet.gov.uk/supplierspend,Thanet District Council,06/01/2015,375573,839.54,,Southern Water,SWA001,Operational Services,Revenue,Water Services,Utilities
http://thanet.gov.uk/supplierspend,Thanet District Council,06/01/2015,375832,914.60,,Southern Water,SWA001,Operational Services,Revenue,Water Services,Utilities
http://thanet.gov.uk/supplierspend,Thanet District Council,06/01/2015,375834,539.69,,Southern Water,SWA001,Operational Services,Revenue,Water Services,Utilities
http://thanet.gov.uk/supplierspend,Thanet District Council,06/01/2015,375835,1704.68,,Southern Water,SWA001,Operational Services,Revenue,Water Services,Utilities
http://thanet.gov.uk/supplierspend,Thanet District Council,06/01/2015,375988,490.00,,Stagecoach Services Limited,STA023,Corporate Resources and S151,Balance Sheet,Staff Bus Permits Holding A/C,Public Transport
http://thanet.gov.uk/supplierspend,Thanet District Council,06/01/2015,375202,6928.00,,T Nielsen & Company Ltd,NIE001,Community Services,Revenue,"Repairs,  Alter & Mtce - Build",Construction-Repair And Maint
http://thanet.gov.uk/supplierspend,Thanet District Council,06/01/2015,375406,3374.98,,The Glenwood Hotel,GLE007,Community Services,Revenue,Services,Housing Management
http://thanet.gov.uk/supplierspend,Thanet District Council,06/01/2015,375407,833.32,,The Glenwood Hotel,GLE007,Community Services,Revenue,Services,Housing Management
http://thanet.gov.uk/supplierspend,Thanet District Council,06/01/2015,375801,253.91,,The Paper Company Limited,PAP003,Community Services,Revenue,"Print, Stat And Gen Off Exps",Stationery
http://thanet.gov.uk/supplierspend,Thanet District Council,06/01/2015,375444,355.00,,Total Sports Coaching,TOT014,Community Services,Revenue,Services,Arts And Leisure Services
http://thanet.gov.uk/supplierspend,Thanet District Council,06/01/2015,375368,1400.00,,Tourism South East,TOU003,Community Services,Revenue,Rents,Human Resources
http://thanet.gov.uk/supplierspend,Thanet District Council,06/01/2015,375449,10691.16,,Trowers & Hamlins,TRO001,Corporate Resources and S151,Balance Sheet,Other Land And Buildings-Hra,Legal Services
http://thanet.gov.uk/supplierspend,Thanet District Council,06/01/2015,375558,6011.25,,Trowers & Hamlins,TRO001,Corporate Resources and S151,Balance Sheet,Other Land And Buildings-Hra,Legal Services
http://thanet.gov.uk/supplierspend,Thanet District Council,06/01/2015,375829,3510.92,,Tudor Owen Plant Services,TUD004,Operational Services,Revenue,Direct Transport Costs,Vehicle Management
http://thanet.gov.uk/supplierspend,Thanet District Council,06/01/2015,375796,232.95,,Unibind Systems Ltd,UNI027,Community Services,Revenue,"Print, Stat And Gen Off Exps",Facilities And Mangement Serv
http://thanet.gov.uk/supplierspend,Thanet District Council,06/01/2015,375441,7210.00,,Visit Kent Ltd,VIS005,Community Services,Revenue,Services,Arts And Leisure Services
http://thanet.gov.uk/supplierspend,Thanet District Council,06/01/2015,375442,500.00,,Visit Kent Ltd,VIS005,Community Services,Revenue,"Print, Stat And Gen Off Exps",Arts And Leisure Services
http://thanet.gov.uk/supplierspend,Thanet District Council,06/01/2015,375170,740.62,,W G Burbridge,BUR016,Operational Services,Revenue,"Equip, Furniture And Materials",Building Construction Material
http://thanet.gov.uk/supplierspend,Thanet District Council,06/01/2015,375171,1487.28,,W G Burbridge,BUR016,Operational Services,Revenue,"Repairs,  Alter & Mtce - Build",Building Construction Material
http://thanet.gov.uk/supplierspend,Thanet District Council,06/01/2015,375432,2830.19,,Webaspx Limited,WEB016,Operational Services,Revenue,Training,ICT
http://thanet.gov.uk/supplierspend,Thanet District Council,06/01/2015,375940,33867.75,,Wheelscape Ltd,WHE006,Corporate Resources and S151,Balance Sheet,Plant And Equipment,Construction-Repair And Maint
http://thanet.gov.uk/supplierspend,Thanet District Council,06/01/2015,376110,563.11,,Wolters Kluwer (Uk) Ltd,WOL002,Community Services,Revenue,"Print, Stat And Gen Off Exps",Financial Services
http://thanet.gov.uk/supplierspend,Thanet District Council,09/01/2015,376061,252.53,,Acr London Limited,ACR003,Community Services,Revenue,"Repairs,  Alter & Mtce - Build",Facilities And Mangement Serv
http://thanet.gov.uk/supplierspend,Thanet District Council,09/01/2015,376071,1864.38,,Advanced Business Solutions,COA011,Corporate Resources and S151,Revenue,Communications & Computing,ICT
http://thanet.gov.uk/supplierspend,Thanet District Council,09/01/2015,376072,1203.92,,Advanced Business Solutions,COA011,Corporate Resources and S151,Revenue,Communications & Computing,ICT
http://thanet.gov.uk/supplierspend,Thanet District Council,09/01/2015,376023,3602.94,,Aligned Assets Ltd,ALI002,East Kent Shared Services,Revenue,Communications & Computing,ICT
http://thanet.gov.uk/supplierspend,Thanet District Council,09/01/2015,376456,1590.00,,Bridge Security Monitoring Ltd,BRI040,Community Services,Revenue,Services,Facilities And Mangement Serv
http://thanet.gov.uk/supplierspend,Thanet District Council,09/01/2015,376028,2564.97,,Call Flow Solutions Limited,CAL006,Community Services,Revenue,Communications & Computing,ICT
http://thanet.gov.uk/supplierspend,Thanet District Council,09/01/2015,376029,3750.00,,Call Flow Solutions Limited,CAL006,Community Services,Revenue,Communications & Computing,ICT
http://thanet.gov.uk/supplierspend,Thanet District Council,09/01/2015,375805,19878.33,,Canterbury City Council,CAN004,East Kent Shared Services,Revenue,Grants & Subscriptions,Various Cats-Public Sector
http://thanet.gov.uk/supplierspend,Thanet District Council,09/01/2015,375929,1600.00,,Canterbury Scaffolding,CAN023,Corporate Resources and S151,Balance Sheet,Council Dwellings,Construction-Repair And Maint
http://thanet.gov.uk/supplierspend,Thanet District Council,09/01/2015,375807,298.88,,Computerland Uk Limited,COM045,Operational Services,Revenue,Communications & Computing,ICT
http://thanet.gov.uk/supplierspend,Thanet District Council,09/01/2015,376041,2514.42,,Computerland Uk Limited,COM045,East Kent Shared Services,Revenue,"Equip, Furniture And Materials",ICT
http://thanet.gov.uk/supplierspend,Thanet District Council,09/01/2015,376395,1317.38,,Dcb (Kent) Ltd,DCB001,Corporate Resources and S151,Balance Sheet,Repairs And Mtce Holding A/C,Construction-Repair And Maint
http://thanet.gov.uk/supplierspend,Thanet District Council,09/01/2015,376396,2194.50,,Dcb (Kent) Ltd,DCB001,Corporate Resources and S151,Balance Sheet,Repairs And Mtce Holding A/C,Construction-Repair And Maint
http://thanet.gov.uk/supplierspend,Thanet District Council,09/01/2015,376397,10120.81,,Dcb (Kent) Ltd,DCB001,Corporate Resources and S151,Balance Sheet,Repairs And Mtce Holding A/C,Construction-Repair And Maint
http://thanet.gov.uk/supplierspend,Thanet District Council,09/01/2015,376398,13151.84,,Dcb (Kent) Ltd,DCB001,Corporate Resources and S151,Balance Sheet,Repairs And Mtce Holding A/C,Construction-Repair And Maint
http://thanet.gov.uk/supplierspend,Thanet District Council,09/01/2015,376399,92163.50,,Dcb (Kent) Ltd,DCB001,Corporate Resources and S151,Balance Sheet,Repairs And Mtce Holding A/C,Construction-Repair And Maint
http://thanet.gov.uk/supplierspend,Thanet District Council,09/01/2015,375729,636.58,,E Saunders Margate Ltd,SAU001,Community Services,Revenue,"Repairs,  Alter & Mtce - Build",Construction-Repair And Maint
http://thanet.gov.uk/supplierspend,Thanet District Council,09/01/2015,375730,344.74,,E Saunders Margate Ltd,SAU001,Operational Services,Revenue,"Repairs,  Alter & Mtce - Build",Construction-Repair And Maint
http://thanet.gov.uk/supplierspend,Thanet District Council,09/01/2015,375731,601.51,,E Saunders Margate Ltd,SAU001,Community Services,Revenue,"Repairs,  Alter & Mtce - Build",Construction-Repair And Maint
http://thanet.gov.uk/supplierspend,Thanet District Council,09/01/2015,376394,407.35,,E Saunders Margate Ltd,SAU001,Corporate Resources and S151,Balance Sheet,Repairs And Mtce Holding A/C,Construction-Repair And Maint
http://thanet.gov.uk/supplierspend,Thanet District Council,09/01/2015,375603,1583.47,,Electrical Lighting Solutions Ltd,ELE013,Operational Services,Revenue,"Repairs,  Alter & Mtce - Build",Building Construction Material
http://thanet.gov.uk/supplierspend,Thanet District Council,09/01/2015,375598,898.00,,Essentra Packaging & Security Ltd,ESS005,Operational Services,Revenue,"Equip, Furniture And Materials",Maritime Services
http://thanet.gov.uk/supplierspend,Thanet District Council,09/01/2015,376357,431.00,,Geze Uk Limited,GEZ001,Community Services,Revenue,"Repairs,  Alter & Mtce - Build",Building Construction Material
http://thanet.gov.uk/supplierspend,Thanet District Council,09/01/2015,376295,2450.00,,Global Radio Services Ltd,GLO011,Operational Services,Revenue,Miscellaneous Expenses,Facilities And Mangement Serv
http://thanet.gov.uk/supplierspend,Thanet District Council,09/01/2015,376400,488.00,,Hartsdown Technology College,HAR013,Community Services,Revenue,Grants & Subscriptions,Grants
http://thanet.gov.uk/supplierspend,Thanet District Council,09/01/2015,375671,3.00,,Hydraulic & Engineering Servs Ltd,HYD011,Operational Services,Revenue,"Equip, Furniture And Materials",Vehicle Management
http://thanet.gov.uk/supplierspend,Thanet District Council,09/01/2015,375671,787.00,,Hydraulic & Engineering Servs Ltd,HYD011,Operational Services,Revenue,"Repairs,  Alter & Mtce - Build",Vehicle Management
http://thanet.gov.uk/supplierspend,Thanet District Council,09/01/2015,376062,458.88,,Insight Direct (Uk) Ltd,INS013,Operational Services,Revenue,"Equip, Furniture And Materials",ICT
http://thanet.gov.uk/supplierspend,Thanet District Council,09/01/2015,376385,15400.00,,Jadu Limited,JAD003,East Kent Shared Services,Revenue,Communications & Computing,ICT
http://thanet.gov.uk/supplierspend,Thanet District Council,09/01/2015,376392,849.24,,John Gale,GAL001,Corporate Resources and S151,Balance Sheet,Capital Exp-Non Council Assets,Grants
http://thanet.gov.uk/supplierspend,Thanet District Council,09/01/2015,376280,1597.50,,Jump It Recruitment Solutions Ltd,JUM001,East Kent Shared Services,Revenue,Agency Staff,Human Resources
http://thanet.gov.uk/supplierspend,Thanet District Council,09/01/2015,375725,402.79,,Kent Police & Crime Commissioner,KPC002,Operational Services,Revenue,Services,Facilities And Mangement Serv
http://thanet.gov.uk/supplierspend,Thanet District Council,09/01/2015,375926,400.00,,Km Media Group Limited,KMM001,Community Services,Revenue,Miscellaneous Expenses,Facilities And Mangement Serv
http://thanet.gov.uk/supplierspend,Thanet District Council,09/01/2015,376282,1900.00,,Kpmg Llp Fees Account,KPM001,Corporate Resources and S151,Revenue,Services,Financial Services
http://thanet.gov.uk/supplierspend,Thanet District Council,09/01/2015,375413,720.00,,M D Electrics,MDE001,Operational Services,Revenue,"Equip, Furniture And Materials",Building Construction Material
http://thanet.gov.uk/supplierspend,Thanet District Council,09/01/2015,375895,2940.50,,Matrix Communications Ltd,MAT004,Corporate Resources and S151,Revenue,Communications & Computing,ICT
http://thanet.gov.uk/supplierspend,Thanet District Council,09/01/2015,375896,5068.00,,Matrix Communications Ltd,MAT004,Corporate Resources and S151,Revenue,Communications & Computing,ICT
http://thanet.gov.uk/supplierspend,Thanet District Council,09/01/2015,375646,8809.61,,Mears Ltd,MEA003,Corporate Resources and S151,Balance Sheet,Repairs And Mtce Holding A/C,Construction-Repair And Maint
http://thanet.gov.uk/supplierspend,Thanet District Council,09/01/2015,375649,6423.11,,Mears Ltd,MEA003,Corporate Resources and S151,Balance Sheet,Repairs And Mtce Holding A/C,Construction-Repair And Maint
http://thanet.gov.uk/supplierspend,Thanet District Council,09/01/2015,375651,14318.82,,Mears Ltd,MEA003,Corporate Resources and S151,Balance Sheet,Repairs And Mtce Holding A/C,Construction-Repair And Maint
http://thanet.gov.uk/supplierspend,Thanet District Council,09/01/2015,375653,2531.59,,Mears Ltd,MEA003,Corporate Resources and S151,Balance Sheet,Repairs And Mtce Holding A/C,Construction-Repair And Maint
http://thanet.gov.uk/supplierspend,Thanet District Council,09/01/2015,375994,2407.38,,Mears Ltd,MEA003,Corporate Resources and S151,Balance Sheet,Repairs And Mtce Holding A/C,Construction-Repair And Maint
http://thanet.gov.uk/supplierspend,Thanet District Council,09/01/2015,375995,8850.56,,Mears Ltd,MEA003,Corporate Resources and S151,Balance Sheet,Repairs And Mtce Holding A/C,Construction-Repair And Maint
http://thanet.gov.uk/supplierspend,Thanet District Council,09/01/2015,375996,11136.32,,Mears Ltd,MEA003,Corporate Resources and S151,Balance Sheet,Repairs And Mtce Holding A/C,Construction-Repair And Maint
http://thanet.gov.uk/supplierspend,Thanet District Council,09/01/2015,375997,1086.59,,Mears Ltd,MEA003,Corporate Resources and S151,Balance Sheet,Repairs And Mtce Holding A/C,Construction-Repair And Maint
http://thanet.gov.uk/supplierspend,Thanet District Council,09/01/2015,375998,1038.73,,Mears Ltd,MEA003,Corporate Resources and S151,Balance Sheet,Repairs And Mtce Holding A/C,Construction-Repair And Maint
http://thanet.gov.uk/supplierspend,Thanet District Council,09/01/2015,375999,2534.21,,Mears Ltd,MEA003,Corporate Resources and S151,Balance Sheet,Repairs And Mtce Holding A/C,Construction-Repair And Maint
http://thanet.gov.uk/supplierspend,Thanet District Council,09/01/2015,376007,1439.22,,Mears Ltd,MEA003,Community Services,Revenue,"Repairs,  Alter & Mtce - Build",Construction-Repair And Maint
http://thanet.gov.uk/supplierspend,Thanet District Council,09/01/2015,376278,648.00,,Michael Page Int Recruitment Ltd,PAG008,Corporate Resources and S151,Revenue,Services,Human Resources
http://thanet.gov.uk/supplierspend,Thanet District Council,09/01/2015,376360,550.00,,Miles & Barr Property Mgmt & Lettings,MIL025,Community Services,Revenue,Rents,Rent Deposits
http://thanet.gov.uk/supplierspend,Thanet District Council,09/01/2015,376047,120.44,,Morgan Jones Ltd,MOR001,Corporate Resources and S151,Revenue,Services,Human Resources
http://thanet.gov.uk/supplierspend,Thanet District Council,09/01/2015,376047,120.45,,Morgan Jones Ltd,MOR001,Community Services,Revenue,Services,Human Resources
http://thanet.gov.uk/supplierspend,Thanet District Council,09/01/2015,375724,420.00,,Mr Philip Woolfe,WOO030,Operational Services,Revenue,Services,Legal Services
http://thanet.gov.uk/supplierspend,Thanet District Council,09/01/2015,375990,280.00,,N K F Seymour Electrical Cont,SEY002,Community Services,Revenue,Services,Building Construction Material
http://thanet.gov.uk/supplierspend,Thanet District Council,09/01/2015,375925,333.33,,Nayland Rock Hotels Ltd,NAY002,Community Services,Revenue,Services,Housing Management
http://thanet.gov.uk/supplierspend,Thanet District Council,09/01/2015,376363,450.00,,Oasis,OAS001,Community Services,Revenue,Grants & Subscriptions,Rent Allowances
http://thanet.gov.uk/supplierspend,Thanet District Council,09/01/2015,375897,11498.41,,Ocs Group Uk Ltd T/A Fountains,OCS005,Corporate Resources and S151,Balance Sheet,Repairs And Mtce Holding A/C,Cleaning And Janitorial
http://thanet.gov.uk/supplierspend,Thanet District Council,09/01/2015,375899,797.69,,Ocs Group Uk Ltd T/A Fountains,OCS005,Community Services,Revenue,Cleaning & Domestic Supplies,Cleaning And Janitorial
http://thanet.gov.uk/supplierspend,Thanet District Council,09/01/2015,375900,258.17,,Ocs Group Uk Ltd T/A Fountains,OCS005,Community Services,Revenue,Cleaning & Domestic Supplies,Cleaning And Janitorial
http://thanet.gov.uk/supplierspend,Thanet District Council,09/01/2015,376343,391.06,,Oracle Corporation Uk Ltd,ORA001,East Kent Shared Services,Revenue,Communications & Computing,ICT
http://thanet.gov.uk/supplierspend,Thanet District Council,09/01/2015,375681,1500.00,,Osborne Richardson Limited,OSB009,Community Services,Revenue,Services,Human Resources
http://thanet.gov.uk/supplierspend,Thanet District Council,09/01/2015,375682,1500.00,,Osborne Richardson Limited,OSB009,Community Services,Revenue,Services,Human Resources
http://thanet.gov.uk/supplierspend,Thanet District Council,09/01/2015,375683,1500.00,,Osborne Richardson Limited,OSB009,Community Services,Revenue,Services,Human Resources
http://thanet.gov.uk/supplierspend,Thanet District Council,09/01/2015,375684,1500.00,,Osborne Richardson Limited,OSB009,Community Services,Revenue,Services,Human Resources
http://thanet.gov.uk/supplierspend,Thanet District Council,09/01/2015,376391,3000.00,,Outset (Uk) Ltd,OUT004,Corporate Resources and S151,Revenue,Services,Legal Services
http://thanet.gov.uk/supplierspend,Thanet District Council,09/01/2015,375655,1216.55,,Puls Global Ltd,PUL006,Operational Services,Revenue,"Equip, Furniture And Materials",Facilities And Mangement Serv
http://thanet.gov.uk/supplierspend,Thanet District Council,09/01/2015,375656,430.63,,Puls Global Ltd,PUL006,Operational Services,Revenue,"Repairs,  Alter & Mtce - Build",Facilities And Mangement Serv
http://thanet.gov.uk/supplierspend,Thanet District Council,09/01/2015,375665,1165.73,,Puls Global Ltd,PUL006,Operational Services,Revenue,"Repairs,  Alter & Mtce - Build",Facilities And Mangement Serv
http://thanet.gov.uk/supplierspend,Thanet District Council,09/01/2015,375728,1161.30,,S W Flooring (South East) Limited,SWF002,Community Services,Revenue,Fixtures & Fittings,Building Construction Material
http://thanet.gov.uk/supplierspend,Thanet District Council,09/01/2015,375969,409.45,,Screwfix Direct Ltd,SCR001,Operational Services,Revenue,"Repairs,  Alter & Mtce - Build",Building Construction Material
http://thanet.gov.uk/supplierspend,Thanet District Council,09/01/2015,375989,516.25,,Sellick Partnership Ltd,SEL011,Corporate Resources and S151,Revenue,Agency Staff,Human Resources
http://thanet.gov.uk/supplierspend,Thanet District Council,09/01/2015,376019,766.50,,Sellick Partnership Ltd,SEL011,Corporate Resources and S151,Revenue,Agency Staff,Human Resources
http://thanet.gov.uk/supplierspend,Thanet District Council,09/01/2015,376270,522.00,,Sellick Partnership Ltd,SEL011,Corporate Resources and S151,Revenue,Services,Human Resources
http://thanet.gov.uk/supplierspend,Thanet District Council,09/01/2015,375905,1500.00,,Sjr Pm Solutions Limited,SJR001,East Kent Shared Services,Revenue,Services,ICT
http://thanet.gov.uk/supplierspend,Thanet District Council,09/01/2015,376020,900.00,,Sjr Pm Solutions Limited,SJR001,East Kent Shared Services,Revenue,Services,ICT
http://thanet.gov.uk/supplierspend,Thanet District Council,09/01/2015,376327,300.00,,Sjr Pm Solutions Limited,SJR001,East Kent Shared Services,Revenue,Services,ICT
http://thanet.gov.uk/supplierspend,Thanet District Council,09/01/2015,375726,679.00,,Streetmaster (S.Wales) Limited,STR001,Operational Services,Revenue,"Equip, Furniture And Materials",Highway Equipment And Material
http://thanet.gov.uk/supplierspend,Thanet District Council,09/01/2015,375955,1410.00,,Swale Heating Ltd,SWA006,Corporate Resources and S151,Balance Sheet,Repairs And Mtce Holding A/C,Building Construction Material
http://thanet.gov.uk/supplierspend,Thanet District Council,09/01/2015,376389,2629.47,,T Loughman & Co Limited,LOU003,Corporate Resources and S151,Balance Sheet,Infrastructure,Building Construction Material
http://thanet.gov.uk/supplierspend,Thanet District Council,09/01/2015,376362,10000.00,,Thanet Community Networks,TCO011,Community Services,Revenue,Grants & Subscriptions,Facilities And Mangement Serv
http://thanet.gov.uk/supplierspend,Thanet District Council,09/01/2015,375782,1312.49,,The Glenwood Hotel,GLE007,Community Services,Revenue,Services,Housing Management
http://thanet.gov.uk/supplierspend,Thanet District Council,09/01/2015,376353,300.00,,Time Inc (Uk) Ltd,TIM008,Operational Services,Revenue,Miscellaneous Expenses,Facilities And Mangement Serv
http://thanet.gov.uk/supplierspend,Thanet District Council,09/01/2015,376393,7077.00,,Trueden Disability Adaptations Ltd,TRU012,Corporate Resources and S151,Balance Sheet,Capital Exp-Non Council Assets,Grants
http://thanet.gov.uk/supplierspend,Thanet District Council,09/01/2015,375904,230.00,,Watling Tyre Service Ltd,WAT003,Operational Services,Revenue,"Repairs,  Alter & Mtce - Build",Vehicle Management
http://thanet.gov.uk/supplierspend,Thanet District Council,09/01/2015,375727,2000.00,,Wayne Beglan,BEG001,Corporate Resources and S151,Revenue,Services,Legal Services
http://thanet.gov.uk/supplierspend,Thanet District Council,09/01/2015,376390,2600.00,,Welldata Ltd,WEL016,East Kent Shared Services,Revenue,Communications & Computing,ICT
http://thanet.gov.uk/supplierspend,Thanet District Council,09/01/2015,375669,1341.67,,Your Leisure Kent Limited,YOU016,Community Services,Revenue,Rents,Arts And Leisure Services
http://thanet.gov.uk/supplierspend,Thanet District Council,13/01/2015,376608,800.00,,All About Asbestos Limited,ALL044,Operational Services,Revenue,"Repairs,  Alter & Mtce - Build",Environmental Services
http://thanet.gov.uk/supplierspend,Thanet District Council,13/01/2015,375938,320.00,,Assettrac Ltd,ASS012,Operational Services,Revenue,"Equip, Furniture And Materials",ICT
http://thanet.gov.uk/supplierspend,Thanet District Council,13/01/2015,375870,1500.85,,Ats Euromaster Ltd,ATS002,Operational Services,Revenue,Direct Transport Costs,Vehicle Management
http://thanet.gov.uk/supplierspend,Thanet District Council,13/01/2015,375815,1385.49,,Canterbury City Council,CAN004,Corporate Resources and S151,Balance Sheet,Other Land And Buildings-Hra,Various Cats-Public Sector
http://thanet.gov.uk/supplierspend,Thanet District Council,13/01/2015,375564,569.10,,Caxtons,CAX005,Community Services,Revenue,Rents,Facilities And Mangement Serv
http://thanet.gov.uk/supplierspend,Thanet District Council,13/01/2015,376694,47973.21,,D C L G,DCL002,Corporate Resources and S151,Balance Sheet,Capital Receipts Reserve,Government Agencies
http://thanet.gov.uk/supplierspend,Thanet District Council,13/01/2015,375414,215.50,,Dennis Eagle Ltd,DEN005,Operational Services,Revenue,Direct Transport Costs,Vehicle Management
http://thanet.gov.uk/supplierspend,Thanet District Council,13/01/2015,375787,550.00,,George Mccabe,MCC001,Operational Services,Revenue,Cleaning & Domestic Supplies,Environmental Services
http://thanet.gov.uk/supplierspend,Thanet District Council,13/01/2015,375908,770.00,,Gulliver's Truck Hire Limited,GUL001,Operational Services,Revenue,Cont Hire & Operating Lease,Vehicle Management
http://thanet.gov.uk/supplierspend,Thanet District Council,13/01/2015,376002,770.00,,Gulliver's Truck Hire Limited,GUL001,Operational Services,Revenue,Cont Hire & Operating Lease,Vehicle Management
http://thanet.gov.uk/supplierspend,Thanet District Council,13/01/2015,376370,770.00,,Gulliver's Truck Hire Limited,GUL001,Operational Services,Revenue,Cont Hire & Operating Lease,Vehicle Management
http://thanet.gov.uk/supplierspend,Thanet District Council,13/01/2015,375794,1051.52,,Hilton Cabinet Co Ltd,HIL002,Operational Services,Revenue,"Equip, Furniture And Materials",Furniture And Soft Furnishings
http://thanet.gov.uk/supplierspend,Thanet District Council,13/01/2015,375607,1365.46,,Hr Go Recruitment Ltd,HRG002,Operational Services,Revenue,Agency Staff,Human Resources
http://thanet.gov.uk/supplierspend,Thanet District Council,13/01/2015,375608,851.74,,Hr Go Recruitment Ltd,HRG002,Operational Services,Revenue,Agency Staff,Human Resources
http://thanet.gov.uk/supplierspend,Thanet District Council,13/01/2015,375609,463.45,,Hr Go Recruitment Ltd,HRG002,Operational Services,Revenue,Agency Staff,Human Resources
http://thanet.gov.uk/supplierspend,Thanet District Council,13/01/2015,375611,2649.95,,Hr Go Recruitment Ltd,HRG002,Operational Services,Revenue,Agency Staff,Human Resources
http://thanet.gov.uk/supplierspend,Thanet District Council,13/01/2015,375871,9164.81,,Hr Go Recruitment Ltd,HRG002,Operational Services,Revenue,Agency Staff,Human Resources
http://thanet.gov.uk/supplierspend,Thanet District Council,13/01/2015,375960,526.87,,Hr Go Recruitment Ltd,HRG002,Operational Services,Revenue,Agency Staff,Human Resources
http://thanet.gov.uk/supplierspend,Thanet District Council,13/01/2015,375961,822.97,,Hr Go Recruitment Ltd,HRG002,Operational Services,Revenue,Agency Staff,Human Resources
http://thanet.gov.uk/supplierspend,Thanet District Council,13/01/2015,375963,9930.73,,Hr Go Recruitment Ltd,HRG002,Operational Services,Revenue,Agency Staff,Human Resources
http://thanet.gov.uk/supplierspend,Thanet District Council,13/01/2015,375965,2837.32,,Hr Go Recruitment Ltd,HRG002,Operational Services,Revenue,Agency Staff,Human Resources
http://thanet.gov.uk/supplierspend,Thanet District Council,13/01/2015,375966,1366.98,,Hr Go Recruitment Ltd,HRG002,Operational Services,Revenue,Agency Staff,Human Resources
http://thanet.gov.uk/supplierspend,Thanet District Council,13/01/2015,375597,3445.20,,Hydro-Cleansing Ltd,HYD012,Operational Services,Revenue,"Repairs,  Alter & Mtce - Build",Building Construction Material
http://thanet.gov.uk/supplierspend,Thanet District Council,13/01/2015,375902,17698.16,,Ocs Group Uk Ltd T/A Fountains,OCS005,Operational Services,Revenue,Cleaning & Domestic Supplies,Cleaning And Janitorial
http://thanet.gov.uk/supplierspend,Thanet District Council,13/01/2015,375903,435.49,,Ocs Group Uk Ltd T/A Fountains,OCS005,Operational Services,Revenue,Fixtures & Fittings,Cleaning And Janitorial
http://thanet.gov.uk/supplierspend,Thanet District Council,13/01/2015,375909,289.12,,Ocs Group Uk Ltd T/A Fountains,OCS005,Operational Services,Revenue,Fixtures & Fittings,Cleaning And Janitorial
http://thanet.gov.uk/supplierspend,Thanet District Council,13/01/2015,375586,650.00,,Ovenden Plant Hire Ltd,OVE002,Operational Services,Revenue,Cont Hire & Operating Lease,Vehicle Management
http://thanet.gov.uk/supplierspend,Thanet District Council,13/01/2015,376058,3399.00,,Parkeon Limited,PAR063,Operational Services,Revenue,"Equip, Furniture And Materials",Street And Traffic Management
http://thanet.gov.uk/supplierspend,Thanet District Council,13/01/2015,375906,570.00,,Playsafety Limited,PLA023,Operational Services,Revenue,"Repairs,  Alter & Mtce - Build",Health And Safety
http://thanet.gov.uk/supplierspend,Thanet District Council,13/01/2015,376064,725.00,,Reed Business Information Ltd,REE002,Community Services,Revenue,Services,Facilities And Mangement Serv
http://thanet.gov.uk/supplierspend,Thanet District Council,13/01/2015,376065,500.00,,Reed Business Information Ltd,REE002,Community Services,Revenue,Services,Facilities And Mangement Serv
http://thanet.gov.uk/supplierspend,Thanet District Council,13/01/2015,376049,2261.39,,Royal Mail,ROY004,Community Services,Revenue,Communications & Computing,Mail Services
http://thanet.gov.uk/supplierspend,Thanet District Council,13/01/2015,376504,2059.00,,Sellick Partnership Ltd,SEL011,Corporate Resources and S151,Revenue,Services,Human Resources
http://thanet.gov.uk/supplierspend,Thanet District Council,13/01/2015,376369,385.00,,Timeplan Fuel Solutions Ltd,TIM007,Operational Services,Revenue,"Equip, Furniture And Materials",Vehicle Management
http://thanet.gov.uk/supplierspend,Thanet District Council,13/01/2015,376038,1796.84,,Tourism Works,TOU007,Community Services,Revenue,Services,Facilities And Mangement Serv
http://thanet.gov.uk/supplierspend,Thanet District Council,14/01/2015,376811,1970.29,,Santander,SAN017,Corporate Resources and S151,Revenue,Services,Various Cats-Public Sector
http://thanet.gov.uk/supplierspend,Thanet District Council,14/01/2015,376811,656.77,,Santander,SAN017,Community Services,Revenue,Services,Various Cats-Public Sector
http://thanet.gov.uk/supplierspend,Thanet District Council,14/01/2015,376813,700.43,,Santander,SAN017,Corporate Resources and S151,Revenue,Services,Various Cats-Public Sector
http://thanet.gov.uk/supplierspend,Thanet District Council,14/01/2015,376821,1602.61,,Worldpay Ltd,WOR008,Corporate Resources and S151,Revenue,Services,Financial Services
http://thanet.gov.uk/supplierspend,Thanet District Council,14/01/2015,376823,1339.88,,Worldpay Ltd,WOR008,Corporate Resources and S151,Revenue,Services,Financial Services
http://thanet.gov.uk/supplierspend,Thanet District Council,15/01/2015,376845,900.00,,A Better Choice For Building Con Ltd,ABC003,Community Services,Revenue,Services,Consultancy
http://thanet.gov.uk/supplierspend,Thanet District Council,15/01/2015,376056,484.00,,All Access Ltd,ALL031,Corporate Resources and S151,Balance Sheet,Rechargeable Works,Building Construction Material
http://thanet.gov.uk/supplierspend,Thanet District Council,15/01/2015,375590,1165.00,,Amber Driver Training,AMB004,Operational Services,Revenue,"Equip, Furniture And Materials",Human Resources
http://thanet.gov.uk/supplierspend,Thanet District Council,15/01/2015,376382,690.00,,Ashdown Supplies,ASH009,Operational Services,Revenue,"Equip, Furniture And Materials",Cemetery And Crematorium
http://thanet.gov.uk/supplierspend,Thanet District Council,15/01/2015,376432,4350.00,,Bidwells Llp,BID001,Corporate Resources and S151,Balance Sheet,Other Land And Buildings-Hra,Consultancy
http://thanet.gov.uk/supplierspend,Thanet District Council,15/01/2015,376640,240.00,,Bp Drains Ltd,BPD001,Community Services,Revenue,"Repairs,  Alter & Mtce - Build",Construction-Repair And Maint
http://thanet.gov.uk/supplierspend,Thanet District Council,15/01/2015,376052,1480.00,,Canon (Uk) Ltd,CAN021,Community Services,Revenue,"Equip, Furniture And Materials",Facilities And Mangement Serv
http://thanet.gov.uk/supplierspend,Thanet District Council,15/01/2015,376509,230.00,,Chatterbox Ltd,CHA006,East Kent Shared Services,Revenue,Communications & Computing,ICT
http://thanet.gov.uk/supplierspend,Thanet District Council,15/01/2015,376354,395.78,,Cobalt Telephone Technologies Ltd,COB002,Operational Services,Revenue,Services,ICT
http://thanet.gov.uk/supplierspend,Thanet District Council,15/01/2015,376442,839.90,,Cobalt Telephone Technologies Ltd,COB002,Operational Services,Revenue,Services,ICT
http://thanet.gov.uk/supplierspend,Thanet District Council,15/01/2015,376458,1065.00,,Commercial Services Trading Ltd,COM048,Community Services,Revenue,Agency Staff,Various Cats-Public Sector
http://thanet.gov.uk/supplierspend,Thanet District Council,15/01/2015,376276,880.00,,Disclosure And Barring Service,DIS017,Community Services,Revenue,"Equip, Furniture And Materials",Human Resources
http://thanet.gov.uk/supplierspend,Thanet District Council,15/01/2015,376081,437.00,,Downfast Demolition & Salvage Ltd,DOW001,Corporate Resources and S151,Balance Sheet,Rechargeable Works,Building Construction Material
http://thanet.gov.uk/supplierspend,Thanet District Council,15/01/2015,376267,2250.00,,Dr R K Chhabra,CHH001,Operational Services,Revenue,Services,Cemetery And Crematorium
http://thanet.gov.uk/supplierspend,Thanet District Council,15/01/2015,376297,390.00,,Florence Court Hotel,FLO003,Community Services,Revenue,Services,Housing Management
http://thanet.gov.uk/supplierspend,Thanet District Council,15/01/2015,376298,420.00,,Florence Court Hotel,FLO003,Community Services,Revenue,Services,Housing Management
http://thanet.gov.uk/supplierspend,Thanet District Council,15/01/2015,376301,630.00,,Florence Court Hotel,FLO003,Community Services,Revenue,Services,Housing Management
http://thanet.gov.uk/supplierspend,Thanet District Council,15/01/2015,376302,840.00,,Florence Court Hotel,FLO003,Community Services,Revenue,Services,Housing Management
http://thanet.gov.uk/supplierspend,Thanet District Council,15/01/2015,376303,930.00,,Florence Court Hotel,FLO003,Community Services,Revenue,Services,Housing Management
http://thanet.gov.uk/supplierspend,Thanet District Council,15/01/2015,376304,930.00,,Florence Court Hotel,FLO003,Community Services,Revenue,Services,Housing Management
http://thanet.gov.uk/supplierspend,Thanet District Council,15/01/2015,376305,930.00,,Florence Court Hotel,FLO003,Community Services,Revenue,Services,Housing Management
http://thanet.gov.uk/supplierspend,Thanet District Council,15/01/2015,376306,930.00,,Florence Court Hotel,FLO003,Community Services,Revenue,Services,Housing Management
http://thanet.gov.uk/supplierspend,Thanet District Council,15/01/2015,376307,1440.00,,Florence Court Hotel,FLO003,Community Services,Revenue,Services,Housing Management
http://thanet.gov.uk/supplierspend,Thanet District Council,15/01/2015,376309,930.00,,Florence Court Hotel,FLO003,Community Services,Revenue,Services,Housing Management
http://thanet.gov.uk/supplierspend,Thanet District Council,15/01/2015,376387,656.00,,Frandham Boarding Kennels,FRA010,Operational Services,Revenue,Services,Environmental Services
http://thanet.gov.uk/supplierspend,Thanet District Council,15/01/2015,376059,518.65,,Fuel Sure,FUE002,Operational Services,Revenue,"Equip, Furniture And Materials",Construction-Repair And Maint
http://thanet.gov.uk/supplierspend,Thanet District Council,15/01/2015,376060,465.29,,Fuel Sure,FUE002,Operational Services,Revenue,"Equip, Furniture And Materials",Construction-Repair And Maint
http://thanet.gov.uk/supplierspend,Thanet District Council,15/01/2015,375785,3856.06,,Hi Way Services Ltd,HIW002,Operational Services,Revenue,"Repairs,  Alter & Mtce - Build",Highway Equipment And Material
http://thanet.gov.uk/supplierspend,Thanet District Council,15/01/2015,376594,5913.17,,Holbrook Revell Electrical Ltd,HOL015,Operational Services,Revenue,"Repairs,  Alter & Mtce - Build",Building Construction Material
http://thanet.gov.uk/supplierspend,Thanet District Council,15/01/2015,376631,3705.27,,Holbrook Revell Electrical Ltd,HOL015,Operational Services,Revenue,"Repairs,  Alter & Mtce - Build",Building Construction Material
http://thanet.gov.uk/supplierspend,Thanet District Council,15/01/2015,376271,1180.00,,Idox Software  Limited,IDO001,Community Services,Revenue,Communications & Computing,ICT
http://thanet.gov.uk/supplierspend,Thanet District Council,15/01/2015,376037,797.20,,Johnston Sweepers Ltd,JOH008,Operational Services,Revenue,Direct Transport Costs,Vehicle Management
http://thanet.gov.uk/supplierspend,Thanet District Council,15/01/2015,376489,400.17,,Kent County Council (Kcs),KCC003,Community Services,Revenue,"Equip, Furniture And Materials",Facilities And Mangement Serv
http://thanet.gov.uk/supplierspend,Thanet District Council,15/01/2015,376512,400.00,,Km Media Group Limited,KMM001,Community Services,Revenue,Miscellaneous Expenses,Facilities And Mangement Serv
http://thanet.gov.uk/supplierspend,Thanet District Council,15/01/2015,376497,1075.00,,Landor Travel Publications Limited,LAN023,Community Services,Revenue,Miscellaneous Expenses,Facilities And Mangement Serv
http://thanet.gov.uk/supplierspend,Thanet District Council,15/01/2015,376478,592.50,,Leanne Bain,BAI007,Community Services,Revenue,Services,Arts And Leisure Services
http://thanet.gov.uk/supplierspend,Thanet District Council,15/01/2015,376863,500.00,,Margate Cricket Club,MCR001,Community Services,Revenue,Grants & Subscriptions,Arts And Leisure Services
http://thanet.gov.uk/supplierspend,Thanet District Council,15/01/2015,376635,1200.00,,Michael Page Int Recruitment Ltd,PAG008,Corporate Resources and S151,Revenue,Services,Human Resources
http://thanet.gov.uk/supplierspend,Thanet District Council,15/01/2015,376861,5000.00,,Neopost Ltd Credifon,NEO002,Community Services,Revenue,Communications & Computing,Mail Services
http://thanet.gov.uk/supplierspend,Thanet District Council,15/01/2015,376293,9759.28,,New Approach Contractors Ltd,NEW037,Operational Services,Revenue,"Repairs,  Alter & Mtce - Build",Construction-Repair And Maint
http://thanet.gov.uk/supplierspend,Thanet District Council,15/01/2015,376607,1072.50,,New Approach Contractors Ltd,NEW037,Community Services,Revenue,"Repairs,  Alter & Mtce - Build",Construction-Repair And Maint
http://thanet.gov.uk/supplierspend,Thanet District Council,15/01/2015,376602,329.19,,Npower Limited,NPO001,Community Services,Revenue,Energy Costs,Utilities
http://thanet.gov.uk/supplierspend,Thanet District Council,15/01/2015,376386,430.63,,Ntm-Gb Limited,NTM001,Operational Services,Revenue,Direct Transport Costs,Vehicle Management
http://thanet.gov.uk/supplierspend,Thanet District Council,15/01/2015,376003,429.94,,Ocs Group Uk Ltd T/A Fountains,OCS005,Operational Services,Revenue,"Repairs,  Alter & Mtce - Build",Cleaning And Janitorial
http://thanet.gov.uk/supplierspend,Thanet District Council,15/01/2015,376094,292.81,,Orange Personal Communications Ltd,ORA002,Corporate Resources and S151,Revenue,Communications & Computing,ICT
http://thanet.gov.uk/supplierspend,Thanet District Council,15/01/2015,376066,297.64,,Orbis Protect Limited,ORB009,Community Services,Revenue,Services,Facilities And Mangement Serv
http://thanet.gov.uk/supplierspend,Thanet District Council,15/01/2015,376008,1500.00,,Osborne Richardson Limited,OSB009,Community Services,Revenue,Services,Human Resources
http://thanet.gov.uk/supplierspend,Thanet District Council,15/01/2015,376617,1130.00,,P Lawrence & Son,LAW001,Operational Services,Revenue,"Equip, Furniture And Materials",Construction-Repair And Maint
http://thanet.gov.uk/supplierspend,Thanet District Council,15/01/2015,376484,20564.16,,Profile Security Services Limited,PRO018,Operational Services,Revenue,Services,Facilities And Mangement Serv
http://thanet.gov.uk/supplierspend,Thanet District Council,15/01/2015,376490,400.00,,Rippleffect,RIP001,Community Services,Revenue,Communications & Computing,ICT
http://thanet.gov.uk/supplierspend,Thanet District Council,15/01/2015,376440,4895.94,,Sba Ltd,SBA001,Operational Services,Revenue,"Clothes, Uniforms & Laundry",Clothing
http://thanet.gov.uk/supplierspend,Thanet District Council,15/01/2015,376511,900.00,,Sellick Partnership Ltd,SEL011,Community Services,Revenue,Services,Human Resources
http://thanet.gov.uk/supplierspend,Thanet District Council,15/01/2015,376779,303.75,,Sellick Partnership Ltd,SEL011,Corporate Resources and S151,Revenue,Agency Staff,Human Resources
http://thanet.gov.uk/supplierspend,Thanet District Council,15/01/2015,376780,427.50,,Sellick Partnership Ltd,SEL011,Corporate Resources and S151,Revenue,Agency Staff,Human Resources
http://thanet.gov.uk/supplierspend,Thanet District Council,15/01/2015,376097,299.42,,Southern Electric,SEL007,Community Services,Revenue,Energy Costs,Utilities
http://thanet.gov.uk/supplierspend,Thanet District Council,15/01/2015,376375,5.04,,Southern Electric,SEL007,Community Services,Revenue,Energy Costs,Utilities
http://thanet.gov.uk/supplierspend,Thanet District Council,15/01/2015,376375,522.96,,Southern Electric,SEL007,Operational Services,Revenue,Energy Costs,Utilities
http://thanet.gov.uk/supplierspend,Thanet District Council,15/01/2015,376402,237.47,,Southern Electric,SEL007,Operational Services,Revenue,Energy Costs,Utilities
http://thanet.gov.uk/supplierspend,Thanet District Council,15/01/2015,376403,290.76,,Southern Electric,SEL007,Operational Services,Revenue,Energy Costs,Utilities
http://thanet.gov.uk/supplierspend,Thanet District Council,15/01/2015,376408,217.81,,Southern Electric,SEL007,Operational Services,Revenue,Energy Costs,Utilities
http://thanet.gov.uk/supplierspend,Thanet District Council,15/01/2015,376116,1624.58,,Southern Water,SWA001,Community Services,Revenue,Water Services,Utilities
http://thanet.gov.uk/supplierspend,Thanet District Council,15/01/2015,376122,1086.13,,Southern Water,SWA001,Operational Services,Revenue,Water Services,Utilities
http://thanet.gov.uk/supplierspend,Thanet District Council,15/01/2015,376331,211.32,,Sparshatts Of Kent Ltd,SPA008,Operational Services,Revenue,Direct Transport Costs,Vehicle Management
http://thanet.gov.uk/supplierspend,Thanet District Council,15/01/2015,375781,2604.15,,The Glenwood Hotel,GLE007,Community Services,Revenue,Services,Housing Management
http://thanet.gov.uk/supplierspend,Thanet District Council,15/01/2015,376310,729.15,,The Glenwood Hotel,GLE007,Community Services,Revenue,Services,Housing Management
http://thanet.gov.uk/supplierspend,Thanet District Council,15/01/2015,376311,3083.31,,The Glenwood Hotel,GLE007,Community Services,Revenue,Services,Housing Management
http://thanet.gov.uk/supplierspend,Thanet District Council,15/01/2015,376380,2916.64,,The Glenwood Hotel,GLE007,Community Services,Revenue,Services,Housing Management
http://thanet.gov.uk/supplierspend,Thanet District Council,15/01/2015,376381,583.32,,The Glenwood Hotel,GLE007,Community Services,Revenue,Services,Housing Management
http://thanet.gov.uk/supplierspend,Thanet District Council,15/01/2015,375967,384.00,,Wasteparts Uk Ltd,WAS006,Operational Services,Revenue,Direct Transport Costs,Vehicle Management
http://thanet.gov.uk/supplierspend,Thanet District Council,15/01/2015,375569,269.20,,Westbury Industrial Supplies Ltd,WES042,Operational Services,Revenue,"Clothes, Uniforms & Laundry",Clothing
http://thanet.gov.uk/supplierspend,Thanet District Council,15/01/2015,376477,3000.00,,Youth Empower Crime Diversion Schltd,YOU017,Community Services,Revenue,Grants & Subscriptions,Grants
http://thanet.gov.uk/supplierspend,Thanet District Council,16/01/2015,375971,768.00,,Esri (Uk) Ltd,ESR001,East Kent Shared Services,Revenue,Training,ICT
http://thanet.gov.uk/supplierspend,Thanet District Council,16/01/2015,376791,208.80,,Jayar Components Ltd,JAY001,Operational Services,Revenue,"Equip, Furniture And Materials",Vehicle Management
http://thanet.gov.uk/supplierspend,Thanet District Council,16/01/2015,376992,625.00,,Northgate Inf Solutions Uk Ltd,NOR018,Community Services,Revenue,Communications & Computing,ICT
http://thanet.gov.uk/supplierspend,Thanet District Council,16/01/2015,375345,8296.12,,R R Richardson Ltd (In Admin),RIC027,Corporate Resources and S151,Balance Sheet,Council Dwellings,Construction-Repair And Maint
http://thanet.gov.uk/supplierspend,Thanet District Council,19/01/2015,377145,1341.67,,Co-Operative Bank Paypoint,COO018,Corporate Resources and S151,Revenue,Services,Financial Services
http://thanet.gov.uk/supplierspend,Thanet District Council,19/01/2015,377145,447.23,,Co-Operative Bank Paypoint,COO018,Community Services,Revenue,Services,Financial Services
http://thanet.gov.uk/supplierspend,Thanet District Council,19/01/2015,377146,1418.82,,Co-Operative Bank Paypoint,COO018,Corporate Resources and S151,Revenue,Services,Financial Services
http://thanet.gov.uk/supplierspend,Thanet District Council,19/01/2015,377146,472.94,,Co-Operative Bank Paypoint,COO018,Community Services,Revenue,Services,Financial Services
http://thanet.gov.uk/supplierspend,Thanet District Council,19/01/2015,377149,271.52,,Nat West Bank,NWE001,Corporate Resources and S151,Revenue,Services,Various Categories
http://thanet.gov.uk/supplierspend,Thanet District Council,19/01/2015,N/A,322.38,,REDACTED PERSONAL DATA,N/A,Community Services,Revenue,Car Allowances,Non Trade Payee
http://thanet.gov.uk/supplierspend,Thanet District Council,19/01/2015,N/A,287.40,,REDACTED PERSONAL DATA,N/A,Community Services,Revenue,Car Allowances,Non Trade Payee
http://thanet.gov.uk/supplierspend,Thanet District Council,19/01/2015,N/A,346.96,,REDACTED PERSONAL DATA,N/A,Community Services,Revenue,Car Allowances,Non Trade Payee
http://thanet.gov.uk/supplierspend,Thanet District Council,19/01/2015,N/A,21.80,,REDACTED PERSONAL DATA,N/A,Community Services,Revenue,Public Transport,Non Trade Payee
http://thanet.gov.uk/supplierspend,Thanet District Council,19/01/2015,N/A,795.69,,REDACTED PERSONAL DATA,N/A,East Kent Shared Services,Revenue,Public Transport,Non Trade Payee
http://thanet.gov.uk/supplierspend,Thanet District Council,19/01/2015,N/A,365.87,,REDACTED PERSONAL DATA,N/A,East Kent Shared Services,Revenue,Public Transport,Non Trade Payee
http://thanet.gov.uk/supplierspend,Thanet District Council,19/01/2015,N/A,333.73,,REDACTED PERSONAL DATA,N/A,East Kent Shared Services,Revenue,Public Transport,Non Trade Payee
http://thanet.gov.uk/supplierspend,Thanet District Council,19/01/2015,N/A,289.29,,REDACTED PERSONAL DATA,N/A,Operational Services,Revenue,Public Transport,Non Trade Payee
http://thanet.gov.uk/supplierspend,Thanet District Council,19/01/2015,N/A,275.11,,REDACTED PERSONAL DATA,N/A,Operational Services,Revenue,Public Transport,Non Trade Payee
http://thanet.gov.uk/supplierspend,Thanet District Council,19/01/2015,N/A,280.78,,REDACTED PERSONAL DATA,N/A,Operational Services,Revenue,Public Transport,Non Trade Payee
http://thanet.gov.uk/supplierspend,Thanet District Council,19/01/2015,N/A,264.71,,REDACTED PERSONAL DATA,N/A,Operational Services,Revenue,Public Transport,Non Trade Payee
http://thanet.gov.uk/supplierspend,Thanet District Council,20/01/2015,376273,4260.98,,Albion Fencing&Construction Kent Ltd,ALB005,Corporate Resources and S151,Balance Sheet,Community Assets,Building Construction Material
http://thanet.gov.uk/supplierspend,Thanet District Council,20/01/2015,377151,448.10,,Allstar Business Solutions Ltd,ALL038,Operational Services,Revenue,Direct Transport Costs,Vehicle Management
http://thanet.gov.uk/supplierspend,Thanet District Council,20/01/2015,377066,10175.00,,Bramling Construction Ltd,BRA020,Corporate Resources and S151,Balance Sheet,Capital Exp-Non Council Assets,Grants
http://thanet.gov.uk/supplierspend,Thanet District Council,20/01/2015,376677,1425.00,,Bridge Security Cctv Ltd,BRI039,Operational Services,Revenue,Services,Facilities And Mangement Serv
http://thanet.gov.uk/supplierspend,Thanet District Council,20/01/2015,376684,1445.70,,Bridge Security Cctv Ltd,BRI039,Community Services,Revenue,Services,Facilities And Mangement Serv
http://thanet.gov.uk/supplierspend,Thanet District Council,20/01/2015,376685,750.00,,Bridge Security Cctv Ltd,BRI039,Operational Services,Revenue,Services,Facilities And Mangement Serv
http://thanet.gov.uk/supplierspend,Thanet District Council,20/01/2015,376483,6750.00,,British Ports Association,BPA002,Operational Services,Revenue,Grants & Subscriptions,Human Resources
http://thanet.gov.uk/supplierspend,Thanet District Council,20/01/2015,375806,11000.00,,Canterbury City Council,CAN004,Operational Services,Revenue,Services,Various Cats-Public Sector
http://thanet.gov.uk/supplierspend,Thanet District Council,20/01/2015,376613,12000.00,,Canterbury City Council,CAN004,Operational Services,Revenue,Services,Various Cats-Public Sector
http://thanet.gov.uk/supplierspend,Thanet District Council,20/01/2015,376068,255.00,,Channel Commercials Plc,CCO001,Operational Services,Revenue,Direct Transport Costs,Vehicle Management
http://thanet.gov.uk/supplierspend,Thanet District Council,20/01/2015,376817,2688.00,,Citrix Online Uk Limited,CIT014,East Kent Shared Services,Revenue,Communications & Computing,ICT
http://thanet.gov.uk/supplierspend,Thanet District Council,20/01/2015,376849,11048.32,,Dover District Council,DOV001,Corporate Resources and S151,Revenue,Services,Various Cats-Public Sector
http://thanet.gov.uk/supplierspend,Thanet District Council,20/01/2015,376466,219.90,,East Kent Components Ltd,EKC006,Operational Services,Revenue,Direct Transport Costs,Vehicle Management
http://thanet.gov.uk/supplierspend,Thanet District Council,20/01/2015,377059,1719.81,,Electrical Lighting Solutions Ltd,ELE013,Community Services,Revenue,"Repairs,  Alter & Mtce - Build",Building Construction Material
http://thanet.gov.uk/supplierspend,Thanet District Council,20/01/2015,377049,968.96,,F R Jones & Son,JON020,Operational Services,Revenue,"Equip, Furniture And Materials",Horticultural
http://thanet.gov.uk/supplierspend,Thanet District Council,20/01/2015,377067,1225.00,,Family Mosaic Housing,FAM001,Corporate Resources and S151,Balance Sheet,Capital Exp-Non Council Assets,Housing Management
http://thanet.gov.uk/supplierspend,Thanet District Council,20/01/2015,377069,1566.40,,Family Mosaic Housing,FAM001,Corporate Resources and S151,Balance Sheet,Capital Exp-Non Council Assets,Housing Management
http://thanet.gov.uk/supplierspend,Thanet District Council,20/01/2015,377072,3794.44,,Family Mosaic Housing,FAM001,Corporate Resources and S151,Balance Sheet,Capital Exp-Non Council Assets,Housing Management
http://thanet.gov.uk/supplierspend,Thanet District Council,20/01/2015,376598,481.25,,Freight Transport Association,FRE007,Operational Services,Revenue,"Equip, Furniture And Materials",Human Resources
http://thanet.gov.uk/supplierspend,Thanet District Council,20/01/2015,376610,1210.00,,Gerlack & Thorne Ltd,GER001,Operational Services,Revenue,"Repairs,  Alter & Mtce - Build",Construction-Repair And Maint
http://thanet.gov.uk/supplierspend,Thanet District Council,20/01/2015,376611,435.00,,Gerlack & Thorne Ltd,GER001,Operational Services,Revenue,"Repairs,  Alter & Mtce - Build",Construction-Repair And Maint
http://thanet.gov.uk/supplierspend,Thanet District Council,20/01/2015,376009,344.33,,Hr Go Recruitment Ltd,HRG002,Operational Services,Revenue,Agency Staff,Human Resources
http://thanet.gov.uk/supplierspend,Thanet District Council,20/01/2015,376011,1210.30,,Hr Go Recruitment Ltd,HRG002,Operational Services,Revenue,Agency Staff,Human Resources
http://thanet.gov.uk/supplierspend,Thanet District Council,20/01/2015,376013,7835.37,,Hr Go Recruitment Ltd,HRG002,Operational Services,Revenue,Agency Staff,Human Resources
http://thanet.gov.uk/supplierspend,Thanet District Council,20/01/2015,376014,898.94,,Hr Go Recruitment Ltd,HRG002,Operational Services,Revenue,Agency Staff,Human Resources
http://thanet.gov.uk/supplierspend,Thanet District Council,20/01/2015,376479,752.50,,Hr Go Recruitment Ltd,HRG002,Operational Services,Revenue,Agency Staff,Human Resources
http://thanet.gov.uk/supplierspend,Thanet District Council,20/01/2015,376481,2217.83,,Hr Go Recruitment Ltd,HRG002,Operational Services,Revenue,Agency Staff,Human Resources
http://thanet.gov.uk/supplierspend,Thanet District Council,20/01/2015,377113,287.04,,Hr Go Recruitment Ltd,HRG002,Community Services,Revenue,Agency Staff,Human Resources
http://thanet.gov.uk/supplierspend,Thanet District Council,20/01/2015,377073,3000.00,,Island Events,ISL009,Community Services,Revenue,Grants & Subscriptions,Grants
http://thanet.gov.uk/supplierspend,Thanet District Council,20/01/2015,377070,682.98,,John Gale,GAL001,Corporate Resources and S151,Balance Sheet,Capital Exp-Non Council Assets,Grants
http://thanet.gov.uk/supplierspend,Thanet District Council,20/01/2015,376630,371.70,,Kan-Doo Timber Supplies Ltd,KAN002,Operational Services,Revenue,"Equip, Furniture And Materials",Building Construction Material
http://thanet.gov.uk/supplierspend,Thanet District Council,20/01/2015,376368,812.00,,Kendall Cars Ltd,KEN041,Operational Services,Revenue,Cont Hire & Operating Lease,Vehicle Management
http://thanet.gov.uk/supplierspend,Thanet District Council,20/01/2015,377213,258304.00,,Kent & Medway Towns Fire Authority,KMT001,Corporate Resources and S151,Balance Sheet,Collection Fund - Preceptors,Various Cats-Public Sector
http://thanet.gov.uk/supplierspend,Thanet District Council,20/01/2015,377214,3812183.00,,Kent County Council,KCC022,Corporate Resources and S151,Balance Sheet,Collection Fund - Preceptors,Various Cats-Public Sector
http://thanet.gov.uk/supplierspend,Thanet District Council,20/01/2015,374792,1803.16,,Kent County Council (Kcs),KCC003,Operational Services,Revenue,Energy Costs,Facilities And Mangement Serv
http://thanet.gov.uk/supplierspend,Thanet District Council,20/01/2015,375880,-345.08,,Kent County Council (Kcs),KCC003,Operational Services,Revenue,Energy Costs,Facilities And Mangement Serv
http://thanet.gov.uk/supplierspend,Thanet District Council,20/01/2015,375881,-407.56,,Kent County Council (Kcs),KCC003,Operational Services,Revenue,Energy Costs,Facilities And Mangement Serv
http://thanet.gov.uk/supplierspend,Thanet District Council,20/01/2015,375891,-388.78,,Kent County Council (Kcs),KCC003,Operational Services,Revenue,Energy Costs,Facilities And Mangement Serv
http://thanet.gov.uk/supplierspend,Thanet District Council,20/01/2015,376688,2628.25,,Kent County Council (Kcs),KCC003,Community Services,Revenue,"Equip, Furniture And Materials",Facilities And Mangement Serv
http://thanet.gov.uk/supplierspend,Thanet District Council,20/01/2015,376688,131.75,,Kent County Council (Kcs),KCC003,Operational Services,Revenue,"Equip, Furniture And Materials",Facilities And Mangement Serv
http://thanet.gov.uk/supplierspend,Thanet District Council,20/01/2015,376688,64.36,,Kent County Council (Kcs),KCC003,East Kent Shared Services,Revenue,"Equip, Furniture And Materials",Facilities And Mangement Serv
http://thanet.gov.uk/supplierspend,Thanet District Council,20/01/2015,376765,316.20,,Kent County Council (Kcs),KCC003,Community Services,Revenue,Energy Costs,Facilities And Mangement Serv
http://thanet.gov.uk/supplierspend,Thanet District Council,20/01/2015,376766,360.47,,Kent County Council (Kcs),KCC003,Community Services,Revenue,Energy Costs,Facilities And Mangement Serv
http://thanet.gov.uk/supplierspend,Thanet District Council,20/01/2015,376768,862.51,,Kent County Council (Kcs),KCC003,Operational Services,Revenue,Energy Costs,Facilities And Mangement Serv
http://thanet.gov.uk/supplierspend,Thanet District Council,20/01/2015,376769,878.91,,Kent County Council (Kcs),KCC003,Operational Services,Revenue,Energy Costs,Facilities And Mangement Serv
http://thanet.gov.uk/supplierspend,Thanet District Council,20/01/2015,376770,1383.66,,Kent County Council (Kcs),KCC003,Community Services,Revenue,Energy Costs,Facilities And Mangement Serv
http://thanet.gov.uk/supplierspend,Thanet District Council,20/01/2015,376772,1793.03,,Kent County Council (Kcs),KCC003,Community Services,Revenue,Energy Costs,Facilities And Mangement Serv
http://thanet.gov.uk/supplierspend,Thanet District Council,20/01/2015,376775,1738.25,,Kent County Council (Kcs),KCC003,Operational Services,Revenue,Energy Costs,Facilities And Mangement Serv
http://thanet.gov.uk/supplierspend,Thanet District Council,20/01/2015,376971,7197.41,,Kent County Council (Kcs),KCC003,Community Services,Revenue,Energy Costs,Facilities And Mangement Serv
http://thanet.gov.uk/supplierspend,Thanet District Council,20/01/2015,376972,4479.47,,Kent County Council (Kcs),KCC003,Operational Services,Revenue,Energy Costs,Facilities And Mangement Serv
http://thanet.gov.uk/supplierspend,Thanet District Council,20/01/2015,377103,9651.47,,Kent County Council (Kcs),KCC003,Operational Services,Revenue,Energy Costs,Facilities And Mangement Serv
http://thanet.gov.uk/supplierspend,Thanet District Council,20/01/2015,377215,482313.50,,Kent Police & Crime Commissioner,KPA003,Corporate Resources and S151,Balance Sheet,Collection Fund - Preceptors,Various Cats-Public Sector
http://thanet.gov.uk/supplierspend,Thanet District Council,20/01/2015,376978,340.32,,Kent Workwear Limited,KWO001,East Kent Shared Services,Revenue,Communications & Computing,Clothing
http://thanet.gov.uk/supplierspend,Thanet District Council,20/01/2015,376446,2551.20,,Level 3 Communications (Uk) Ltd,LEV005,Corporate Resources and S151,Balance Sheet,Telephone Holding Account,ICT
http://thanet.gov.uk/supplierspend,Thanet District Council,20/01/2015,376757,148.28,,Lyreco Uk Limited,LYR001,Community Services,Revenue,"Equip, Furniture And Materials",Stationery
http://thanet.gov.uk/supplierspend,Thanet District Council,20/01/2015,376757,82.50,,Lyreco Uk Limited,LYR001,Operational Services,Revenue,"Print, Stat And Gen Off Exps",Stationery
http://thanet.gov.uk/supplierspend,Thanet District Council,20/01/2015,376757,37.18,,Lyreco Uk Limited,LYR001,East Kent Shared Services,Revenue,"Print, Stat And Gen Off Exps",Stationery
http://thanet.gov.uk/supplierspend,Thanet District Council,20/01/2015,376423,290.00,,M D Electrics,MDE001,Community Services,Revenue,"Repairs,  Alter & Mtce - Build",Building Construction Material
http://thanet.gov.uk/supplierspend,Thanet District Council,20/01/2015,376776,4587.00,,Netcall Telecom Ltd,NET013,East Kent Shared Services,Revenue,Communications & Computing,ICT
http://thanet.gov.uk/supplierspend,Thanet District Council,20/01/2015,377077,591.00,,New Tech Security Ltd,NEW027,Community Services,Revenue,"Equip, Furniture And Materials",Facilities And Mangement Serv
http://thanet.gov.uk/supplierspend,Thanet District Council,20/01/2015,377222,871.70,,Npower Direct Limited,NPO003,Community Services,Revenue,Energy Costs,Utilities
http://thanet.gov.uk/supplierspend,Thanet District Council,20/01/2015,377224,296.75,,Npower Direct Limited,NPO003,Community Services,Revenue,Energy Costs,Utilities
http://thanet.gov.uk/supplierspend,Thanet District Council,20/01/2015,377127,500.00,,Outset (Uk) Ltd,OUT004,Corporate Resources and S151,Revenue,Services,Legal Services
http://thanet.gov.uk/supplierspend,Thanet District Council,20/01/2015,376597,715.00,,Ovenden Plant Hire Ltd,OVE002,Operational Services,Revenue,Cont Hire & Operating Lease,Vehicle Management
http://thanet.gov.uk/supplierspend,Thanet District Council,20/01/2015,376764,1695.10,,Patrol,PAT004,Operational Services,Revenue,Services,Street And Traffic Management
http://thanet.gov.uk/supplierspend,Thanet District Council,20/01/2015,376433,1310.00,,Rackspace Limited,RAC006,East Kent Shared Services,Revenue,Communications & Computing,ICT
http://thanet.gov.uk/supplierspend,Thanet District Council,20/01/2015,376695,435.00,,Rospa,ROS003,Operational Services,Revenue,Grants & Subscriptions,Financial Services
http://thanet.gov.uk/supplierspend,Thanet District Council,20/01/2015,376676,1611.51,,Royal Mail,ROY004,Community Services,Revenue,Communications & Computing,Mail Services
http://thanet.gov.uk/supplierspend,Thanet District Council,20/01/2015,376751,763.70,,Sellick Partnership Ltd,SEL011,Corporate Resources and S151,Revenue,Agency Staff,Human Resources
http://thanet.gov.uk/supplierspend,Thanet District Council,20/01/2015,376605,1500.00,,Sjr Pm Solutions Limited,SJR001,East Kent Shared Services,Revenue,Services,ICT
http://thanet.gov.uk/supplierspend,Thanet District Council,20/01/2015,376633,1500.00,,Sjr Pm Solutions Limited,SJR001,East Kent Shared Services,Revenue,Services,ICT
http://thanet.gov.uk/supplierspend,Thanet District Council,20/01/2015,377217,4900.00,,Solace Enterprises Ltd,SOL003,Community Services,Revenue,Services,Consultancy
http://thanet.gov.uk/supplierspend,Thanet District Council,20/01/2015,376641,917.34,,Southern Water,SWA001,Operational Services,Revenue,Water Services,Utilities
http://thanet.gov.uk/supplierspend,Thanet District Council,20/01/2015,376643,289.06,,Southern Water,SWA001,Operational Services,Revenue,Water Services,Utilities
http://thanet.gov.uk/supplierspend,Thanet District Council,20/01/2015,376645,725.97,,Southern Water,SWA001,Operational Services,Revenue,Water Services,Utilities
http://thanet.gov.uk/supplierspend,Thanet District Council,20/01/2015,376652,669.65,,Southern Water,SWA001,Operational Services,Revenue,Water Services,Utilities
http://thanet.gov.uk/supplierspend,Thanet District Council,20/01/2015,376656,3112.70,,Southern Water,SWA001,Operational Services,Revenue,Water Services,Utilities
http://thanet.gov.uk/supplierspend,Thanet District Council,20/01/2015,377060,1961.11,,Southern Water,SWA001,Operational Services,Revenue,Water Services,Utilities
http://thanet.gov.uk/supplierspend,Thanet District Council,20/01/2015,376332,1014.21,,Sparshatts Of Kent Ltd,SPA008,Operational Services,Revenue,Direct Transport Costs,Vehicle Management
http://thanet.gov.uk/supplierspend,Thanet District Council,20/01/2015,376438,227.52,,Sparshatts Of Kent Ltd,SPA008,Operational Services,Revenue,Direct Transport Costs,Vehicle Management
http://thanet.gov.uk/supplierspend,Thanet District Council,20/01/2015,377126,520.00,,Thanet Go Ride Cycling Club,TGO001,Community Services,Revenue,Grants & Subscriptions,Grants
http://thanet.gov.uk/supplierspend,Thanet District Council,20/01/2015,376055,983.70,,Thanet Waste Services Ltd,TWA001,Operational Services,Revenue,Private Contractors,Environmental Services
http://thanet.gov.uk/supplierspend,Thanet District Council,20/01/2015,376126,860.10,,The Fed Of Burial & Cremation Auths,FED001,Operational Services,Revenue,Grants & Subscriptions,Financial Services
http://thanet.gov.uk/supplierspend,Thanet District Council,20/01/2015,376612,0.01,,The Paper Company Limited,PAP003,Community Services,Revenue,"Equip, Furniture And Materials",Stationery
http://thanet.gov.uk/supplierspend,Thanet District Council,20/01/2015,376612,223.00,,The Paper Company Limited,PAP003,Community Services,Revenue,"Print, Stat And Gen Off Exps",Stationery
http://thanet.gov.uk/supplierspend,Thanet District Council,20/01/2015,377068,1302.00,,Trueden Disability Adaptations Ltd,TRU012,Corporate Resources and S151,Balance Sheet,Capital Exp-Non Council Assets,Grants
http://thanet.gov.uk/supplierspend,Thanet District Council,20/01/2015,377071,1500.00,,Trueden Disability Adaptations Ltd,TRU012,Corporate Resources and S151,Balance Sheet,Capital Exp-Non Council Assets,Grants
http://thanet.gov.uk/supplierspend,Thanet District Council,20/01/2015,376689,251.84,,Viridor Waste Management Ltd,VIR003,Community Services,Revenue,Cleaning & Domestic Supplies,Environmental Services
http://thanet.gov.uk/supplierspend,Thanet District Council,20/01/2015,376364,240.00,,W Brazil & Bros,BRA001,Operational Services,Revenue,Services,Environmental Services
http://thanet.gov.uk/supplierspend,Thanet District Council,20/01/2015,376623,700.00,,W Brazil & Bros,BRA001,Corporate Resources and S151,Balance Sheet,Repairs And Mtce Holding A/C,Environmental Services
http://thanet.gov.uk/supplierspend,Thanet District Council,20/01/2015,376624,490.00,,W Brazil & Bros,BRA001,Corporate Resources and S151,Balance Sheet,Repairs And Mtce Holding A/C,Environmental Services
http://thanet.gov.uk/supplierspend,Thanet District Council,20/01/2015,376367,256.46,,W G Burbridge,BUR016,Operational Services,Revenue,"Equip, Furniture And Materials",Building Construction Material
http://thanet.gov.uk/supplierspend,Thanet District Council,20/01/2015,376367,700.00,,W G Burbridge,BUR016,Operational Services,Revenue,"Repairs,  Alter & Mtce - Build",Building Construction Material
http://thanet.gov.uk/supplierspend,Thanet District Council,20/01/2015,376296,5917.35,,Waste Consulting Llp,WAS005,Operational Services,Revenue,Services,Consultancy
http://thanet.gov.uk/supplierspend,Thanet District Council,26/01/2015,PC6282,39.95,,123 Reg,N/A,Operational Services,Revenue,Communications & Computing,ICT
http://thanet.gov.uk/supplierspend,Thanet District Council,26/01/2015,PC6284,46.00,7.67,Albion House Hotel,N/A,Community Services,Revenue,Catering,Human Resources
http://thanet.gov.uk/supplierspend,Thanet District Council,26/01/2015,PC6290,7.09,,Aldi,N/A,Operational Services,Revenue,Catering,Catering
http://thanet.gov.uk/supplierspend,Thanet District Council,26/01/2015,PC6260,28.94,,Amazon,N/A,East Kent Shared Services,Revenue,Communications & Computing,Stationery
http://thanet.gov.uk/supplierspend,Thanet District Council,26/01/2015,PC6297,150.00,,Amazon (Melgray),N/A,Corporate Resources and S151,Revenue,"Equip, Furniture And Materials",Stationery
http://thanet.gov.uk/supplierspend,Thanet District Council,26/01/2015,PC6296,43.00,7.17,Amazon (Sunwood-Uk),N/A,Corporate Resources and S151,Revenue,"Equip, Furniture And Materials",Stationery
http://thanet.gov.uk/supplierspend,Thanet District Council,26/01/2015,PC6377,43.00,7.17,Amazon (Sunwood-Uk),N/A,Corporate Resources and S151,Revenue,"Equip, Furniture And Materials",Stationery
http://thanet.gov.uk/supplierspend,Thanet District Council,26/01/2015,PC6258,27.99,,Amazon EU,N/A,East Kent Shared Services,Revenue,"Equip, Furniture And Materials",Stationery
http://thanet.gov.uk/supplierspend,Thanet District Council,26/01/2015,PC6306,18.49,,Amazon EU,N/A,East Kent Shared Services,Revenue,"Equip, Furniture And Materials",Stationery
http://thanet.gov.uk/supplierspend,Thanet District Council,26/01/2015,PC6364,16.38,,Amazon EU,N/A,East Kent Shared Services,Revenue,"Equip, Furniture And Materials",Stationery
http://thanet.gov.uk/supplierspend,Thanet District Council,26/01/2015,PC6365,19.17,,Amazon EU,N/A,East Kent Shared Services,Revenue,"Equip, Furniture And Materials",Stationery
http://thanet.gov.uk/supplierspend,Thanet District Council,26/01/2015,PC6366,19.17,,Amazon EU,N/A,East Kent Shared Services,Revenue,"Equip, Furniture And Materials",Stationery
http://thanet.gov.uk/supplierspend,Thanet District Council,26/01/2015,PC6367,19.17,,Amazon EU,N/A,East Kent Shared Services,Revenue,"Equip, Furniture And Materials",Stationery
http://thanet.gov.uk/supplierspend,Thanet District Council,26/01/2015,PC6368,19.17,,Amazon EU,N/A,East Kent Shared Services,Revenue,"Equip, Furniture And Materials",Stationery
http://thanet.gov.uk/supplierspend,Thanet District Council,26/01/2015,PC6369,19.17,,Amazon EU,N/A,East Kent Shared Services,Revenue,"Equip, Furniture And Materials",Stationery
http://thanet.gov.uk/supplierspend,Thanet District Council,26/01/2015,PC6370,19.17,,Amazon EU,N/A,East Kent Shared Services,Revenue,"Equip, Furniture And Materials",Stationery
http://thanet.gov.uk/supplierspend,Thanet District Council,26/01/2015,PC6371,19.17,,Amazon EU,N/A,East Kent Shared Services,Revenue,"Equip, Furniture And Materials",Stationery
http://thanet.gov.uk/supplierspend,Thanet District Council,26/01/2015,PC6372,19.17,,Amazon EU,N/A,East Kent Shared Services,Revenue,"Equip, Furniture And Materials",Stationery
http://thanet.gov.uk/supplierspend,Thanet District Council,26/01/2015,PC6373,19.17,,Amazon EU,N/A,East Kent Shared Services,Revenue,"Equip, Furniture And Materials",Stationery
http://thanet.gov.uk/supplierspend,Thanet District Council,26/01/2015,PC6374,19.17,,Amazon EU,N/A,East Kent Shared Services,Revenue,"Equip, Furniture And Materials",Stationery
http://thanet.gov.uk/supplierspend,Thanet District Council,26/01/2015,PC6375,19.17,,Amazon EU,N/A,East Kent Shared Services,Revenue,"Equip, Furniture And Materials",Stationery
http://thanet.gov.uk/supplierspend,Thanet District Council,26/01/2015,PC6311,11.92,1.99,Amazon Marketplace EU,N/A,East Kent Shared Services,Revenue,"Equip, Furniture And Materials",Stationery
http://thanet.gov.uk/supplierspend,Thanet District Council,26/01/2015,PC6324,37.49,6.25,Amazon Marketplace EU,N/A,Operational Services,Revenue,"Repairs,  Alter & Mtce - Build",Stationery
http://thanet.gov.uk/supplierspend,Thanet District Council,26/01/2015,PC6343,2.98,0.5,Amazon Marketplace EU,N/A,East Kent Shared Services,Revenue,"Equip, Furniture And Materials",Stationery
http://thanet.gov.uk/supplierspend,Thanet District Council,26/01/2015,PC6309,115.83,,AO Retail Ltd,N/A,Community Services,Revenue,"Equip, Furniture And Materials",Facilities And Management Serv
http://thanet.gov.uk/supplierspend,Thanet District Council,26/01/2015,PC6329,37.33,,Apple Online Store,N/A,East Kent Shared Services,Revenue,"Equip, Furniture And Materials",ICT
http://thanet.gov.uk/supplierspend,Thanet District Council,26/01/2015,PC6333,162.49,,Astounded,N/A,Community Services,Revenue,"Equip, Furniture And Materials",Facilities And Management Serv
http://thanet.gov.uk/supplierspend,Thanet District Council,26/01/2015,PC6328,300.00,,Benham Publishing Ltd,N/A,Community Services,Revenue,Miscellaneous Expenses,Facilities And Management Serv
http://thanet.gov.uk/supplierspend,Thanet District Council,26/01/2015,PC6266,9.18,,Booker Ltd,N/A,Operational Services,Revenue,Catering,Catering
http://thanet.gov.uk/supplierspend,Thanet District Council,26/01/2015,PC6267,14.58,,Booker Ltd,N/A,Community Services,Revenue,Catering,Catering
http://thanet.gov.uk/supplierspend,Thanet District Council,26/01/2015,PC6268,14.58,,Booker Ltd,N/A,Community Services,Revenue,Catering,Catering
http://thanet.gov.uk/supplierspend,Thanet District Council,26/01/2015,PC6269,14.58,,Booker Ltd,N/A,Community Services,Revenue,Catering,Catering
http://thanet.gov.uk/supplierspend,Thanet District Council,26/01/2015,PC6270,14.58,,Booker Ltd,N/A,Community Services,Revenue,Catering,Catering
http://thanet.gov.uk/supplierspend,Thanet District Council,26/01/2015,PC6271,12.78,,Booker Ltd,N/A,Community Services,Revenue,Catering,Catering
http://thanet.gov.uk/supplierspend,Thanet District Council,26/01/2015,PC6272,3.19,,Booker Ltd,N/A,Corporate Resources and S151,Revenue,Catering,Catering
http://thanet.gov.uk/supplierspend,Thanet District Council,26/01/2015,PC6285,24.75,,Booker Ltd,N/A,Chief Executive,Revenue,Catering,Catering
http://thanet.gov.uk/supplierspend,Thanet District Council,26/01/2015,PC6325,121.38,,CIPS,N/A,Corporate Resources and S151,Revenue,Training,Human Resources
http://thanet.gov.uk/supplierspend,Thanet District Council,26/01/2015,PC6331,550.00,,Civil Service College,N/A,Corporate Resources and S151,Revenue,Expenses,Human Resources
http://thanet.gov.uk/supplierspend,Thanet District Council,26/01/2015,PC6313,5.71,,Costa Coffee,N/A,Operational Services,Revenue,Catering,Catering
http://thanet.gov.uk/supplierspend,Thanet District Council,26/01/2015,PC6314,5.01,,Dart Charge,N/A,Operational Services,Revenue,Expenses,Human Resources
http://thanet.gov.uk/supplierspend,Thanet District Council,26/01/2015,PC6379,229.67,,David Robbens,N/A,Operational Services,Revenue,"Repairs,  Alter & Mtce - Build",Building Construction Materials
http://thanet.gov.uk/supplierspend,Thanet District Council,26/01/2015,PC6289,25.00,,Disclosure Scotland,N/A,East Kent Shared Services,Revenue,Grants & Subscriptions,Various Cats - Public Sector
http://thanet.gov.uk/supplierspend,Thanet District Council,26/01/2015,PC6321,167.50,,DVLA,N/A,Operational Services,Revenue,Direct Transport Costs,Various Cats - Public Sector
http://thanet.gov.uk/supplierspend,Thanet District Council,26/01/2015,PC6322,202.50,,DVLA,N/A,Operational Services,Revenue,Direct Transport Costs,Various Cats - Public Sector
http://thanet.gov.uk/supplierspend,Thanet District Council,26/01/2015,PC6323,227.50,,DVLA,N/A,Operational Services,Revenue,Direct Transport Costs,Various Cats - Public Sector
http://thanet.gov.uk/supplierspend,Thanet District Council,26/01/2015,PC6308,135.00,,EB Coastal Futures,N/A,Operational Services,Revenue,Expenses,Human Resources
http://thanet.gov.uk/supplierspend,Thanet District Council,26/01/2015,PC6334,38.00,,EC Mainline Co Int,N/A,Operational Services,Revenue,Public Transport,Human Resources
http://thanet.gov.uk/supplierspend,Thanet District Council,26/01/2015,PC6386,5.00,,Elepos,N/A,Operational Services,Revenue,"Print, Stat And Gen Off Exps",Stationery
http://thanet.gov.uk/supplierspend,Thanet District Council,26/01/2015,PC6330,30.00,,F J Rogers,N/A,Community Services,Revenue,"Equip, Furniture And Materials",Facilities And Management Serv
http://thanet.gov.uk/supplierspend,Thanet District Council,26/01/2015,PC6299,17.04,,Facebook Ireland Ltd,N/A,Community Services,Revenue,Miscellaneous Expenses,Facilities And Management Serv
http://thanet.gov.uk/supplierspend,Thanet District Council,26/01/2015,PC6376,20.00,,Facebook Ireland Ltd,N/A,Corporate Resources and S151,Revenue,"Equip, Furniture And Materials",Facilities And Management Serv
http://thanet.gov.uk/supplierspend,Thanet District Council,26/01/2015,PC6295,69.00,11.5,Holiday Inns,N/A,Community Services,Revenue,Expenses,Human Resources
http://thanet.gov.uk/supplierspend,Thanet District Council,26/01/2015,PC6387,4.96,0.83,Leafi Ltd,N/A,Community Services,Revenue,Catering,Human Resources
http://thanet.gov.uk/supplierspend,Thanet District Council,26/01/2015,PC6346,340.00,,London & South East,N/A,East Kent Shared Services,Revenue,Public Transport,Human Resources
http://thanet.gov.uk/supplierspend,Thanet District Council,26/01/2015,PC6301,12.20,,London & South Eastern,N/A,Operational Services,Revenue,Public Transport,Human Resources
http://thanet.gov.uk/supplierspend,Thanet District Council,26/01/2015,PC6310,75.00,,London & South Eastern,N/A,Community Services,Revenue,Public Transport,Human Resources
http://thanet.gov.uk/supplierspend,Thanet District Council,26/01/2015,PC6332,51.20,,London & South Eastern,N/A,Community Services,Revenue,Public Transport,Human Resources
http://thanet.gov.uk/supplierspend,Thanet District Council,26/01/2015,PC6300,198.30,,Made 2 Measure Fenders LLP,N/A,Operational Services,Revenue,"Equip, Furniture And Materials",Maritime Services
http://thanet.gov.uk/supplierspend,Thanet District Council,26/01/2015,PC6347,24.60,,National Rail,N/A,Chief Executive,Revenue,Public Transport,Human Resources
http://thanet.gov.uk/supplierspend,Thanet District Council,26/01/2015,PC6312,46.62,7.77,Office Direct,N/A,Community Services,Revenue,"Print, Stat And Gen Off Exps",Stationery
http://thanet.gov.uk/supplierspend,Thanet District Council,26/01/2015,PC6326,3.00,,Office Furniture,N/A,East Kent Shared Services,Revenue,"Print, Stat And Gen Off Exps",Stationery
http://thanet.gov.uk/supplierspend,Thanet District Council,26/01/2015,PC6278,110.00,,Possession Claims Online,N/A,Community Services,Revenue,Services,Various Cats - Public Sector
http://thanet.gov.uk/supplierspend,Thanet District Council,26/01/2015,PC6302,50.00,,Sefton Council,N/A,Operational Services,Revenue,Expenses,Human Resources
http://thanet.gov.uk/supplierspend,Thanet District Council,26/01/2015,PC6279,323.94,,Senetic Ltd,N/A,East Kent Shared Services,Revenue,Communications & Computing,ICT
http://thanet.gov.uk/supplierspend,Thanet District Council,26/01/2015,PC6288,3.17,,Standfast,N/A,Community Services,Revenue,"Equip, Furniture And Materials",Facilities And Management Serv
http://thanet.gov.uk/supplierspend,Thanet District Council,26/01/2015,PC6291,415.00,,Suigeneris,N/A,Operational Services,Revenue,"Equip, Furniture And Materials",Building Construction Materials
http://thanet.gov.uk/supplierspend,Thanet District Council,26/01/2015,PC6357,3.00,,Tesco,N/A,Operational Services,Revenue,Catering,Catering
http://thanet.gov.uk/supplierspend,Thanet District Council,26/01/2015,PC6378,0.83,,Tesco,N/A,Operational Services,Revenue,Catering,Catering
http://thanet.gov.uk/supplierspend,Thanet District Council,26/01/2015,PC6280,280.00,,Thanet County Court,N/A,East Kent Shared Services,Revenue,Services,Various Cats - Public Sector
http://thanet.gov.uk/supplierspend,Thanet District Council,26/01/2015,PC6281,100.00,,Thanet County Court,N/A,Community Services,Revenue,Services,Various Cats - Public Sector
http://thanet.gov.uk/supplierspend,Thanet District Council,26/01/2015,PC6336,280.00,,Thanet County Court,N/A,Community Services,Revenue,Services,Various Cats - Public Sector
http://thanet.gov.uk/supplierspend,Thanet District Council,26/01/2015,PC6337,280.00,,Thanet County Court,N/A,Community Services,Revenue,Services,Various Cats - Public Sector
http://thanet.gov.uk/supplierspend,Thanet District Council,26/01/2015,PC6360,23.22,,Tool Station Ltd,N/A,Community Services,Revenue,"Equip, Furniture And Materials",Building Construction Materials
http://thanet.gov.uk/supplierspend,Thanet District Council,26/01/2015,PC6305,87.50,,Toolstation Ltd,N/A,Community Services,Revenue,"Equip, Furniture And Materials",Building Construction Materials
http://thanet.gov.uk/supplierspend,Thanet District Council,26/01/2015,PC6339,87.50,,Toolstation Ltd,N/A,Community Services,Revenue,"Equip, Furniture And Materials",Building Construction Materials
http://thanet.gov.uk/supplierspend,Thanet District Council,26/01/2015,PC6340,19.75,,Toolstation Ltd,N/A,Community Services,Revenue,"Equip, Furniture And Materials",Building Construction Materials
http://thanet.gov.uk/supplierspend,Thanet District Council,26/01/2015,PC6341,22.78,,Toolstation Ltd,N/A,Community Services,Revenue,"Equip, Furniture And Materials",Building Construction Materials
http://thanet.gov.uk/supplierspend,Thanet District Council,26/01/2015,PC6342,8.46,,Total Supplies,N/A,Community Services,Revenue,"Equip, Furniture And Materials",Cleaning And Janitorial
http://thanet.gov.uk/supplierspend,Thanet District Council,26/01/2015,PC6338,11.50,,Transport For London,N/A,Chief Executive,Revenue,Expenses,Human Resources
http://thanet.gov.uk/supplierspend,Thanet District Council,26/01/2015,PC6283,55.00,,Travelodge,N/A,Community Services,Revenue,Expenses,Human Resources
http://thanet.gov.uk/supplierspend,Thanet District Council,26/01/2015,PC6265,145.50,,TV Licensing,N/A,East Kent Shared Services,Revenue,Services,Various Cats - Public Sector
http://thanet.gov.uk/supplierspend,Thanet District Council,26/01/2015,PC6286,33.70,,Webtis,N/A,Community Services,Revenue,Public Transport,Human Resources
http://thanet.gov.uk/supplierspend,Thanet District Council,26/01/2015,PC6287,51.50,,Webtis,N/A,Corporate Resources and S151,Revenue,Public Transport,Human Resources
http://thanet.gov.uk/supplierspend,Thanet District Council,26/01/2015,PC6292,37.70,,Webtis,N/A,Community Services,Revenue,Public Transport,Human Resources
http://thanet.gov.uk/supplierspend,Thanet District Council,26/01/2015,PC6293,37.30,,Webtis,N/A,Community Services,Revenue,Public Transport,Human Resources
http://thanet.gov.uk/supplierspend,Thanet District Council,26/01/2015,PC6294,51.10,,Webtis,N/A,Community Services,Revenue,Public Transport,Human Resources
http://thanet.gov.uk/supplierspend,Thanet District Council,26/01/2015,PC6315,145.50,,Webtis,N/A,Corporate Resources and S151,Revenue,Public Transport,Human Resources
http://thanet.gov.uk/supplierspend,Thanet District Council,26/01/2015,PC6316,72.30,,Webtis,N/A,East Kent Shared Services,Revenue,Public Transport,Human Resources
http://thanet.gov.uk/supplierspend,Thanet District Council,26/01/2015,PC6317,23.15,,Webtis,N/A,Operational Services,Revenue,Public Transport,Human Resources
http://thanet.gov.uk/supplierspend,Thanet District Council,26/01/2015,PC6318,76.90,,Webtis,N/A,Corporate Resources and S151,Revenue,Public Transport,Human Resources
http://thanet.gov.uk/supplierspend,Thanet District Council,26/01/2015,PC6319,211.20,,Webtis,N/A,East Kent Shared Services,Revenue,Public Transport,Human Resources
http://thanet.gov.uk/supplierspend,Thanet District Council,26/01/2015,PC6320,76.90,,Webtis,N/A,Corporate Resources and S151,Revenue,Public Transport,Human Resources
http://thanet.gov.uk/supplierspend,Thanet District Council,26/01/2015,PC6335,75.30,,Webtis,N/A,Operational Services,Revenue,Public Transport,Human Resources
http://thanet.gov.uk/supplierspend,Thanet District Council,26/01/2015,PC6344,26.00,,Webtis,N/A,Community Services,Revenue,Public Transport,Human Resources
http://thanet.gov.uk/supplierspend,Thanet District Council,26/01/2015,PC6345,59.50,,Webtis,N/A,Corporate Resources and S151,Revenue,Public Transport,Human Resources
http://thanet.gov.uk/supplierspend,Thanet District Council,26/01/2015,PC6303,6.49,,WM Morrisons PLC,N/A,Community Services,Revenue,Catering,Catering
http://thanet.gov.uk/supplierspend,Thanet District Council,26/01/2015,PC6304,3.92,,WM Morrisons PLC,N/A,Community Services,Revenue,Catering,Catering
http://thanet.gov.uk/supplierspend,Thanet District Council,26/01/2015,PC6273,62.49,,www.Discountdisplays.Co.Uk,N/A,Corporate Resources and S151,Revenue,"Equip, Furniture And Materials",Stationery
http://thanet.gov.uk/supplierspend,Thanet District Council,27/01/2015,377171,11491.35,,Advanced Business Solutions,COA011,Corporate Resources and S151,Revenue,Communications & Computing,ICT
http://thanet.gov.uk/supplierspend,Thanet District Council,27/01/2015,377501,578.96,,Allstar Business Solutions Ltd,ALL038,Operational Services,Revenue,Direct Transport Costs,Vehicle Management
http://thanet.gov.uk/supplierspend,Thanet District Council,27/01/2015,377436,2310.00,,Ascendit Lifts Ltd,ASC001,Corporate Resources and S151,Balance Sheet,Capital Exp-Non Council Assets,Grants
http://thanet.gov.uk/supplierspend,Thanet District Council,27/01/2015,377443,10940.00,,Ascendit Lifts Ltd,ASC001,Corporate Resources and S151,Balance Sheet,Capital Exp-Non Council Assets,Grants
http://thanet.gov.uk/supplierspend,Thanet District Council,27/01/2015,376351,7125.00,,Ass For Public Service Excellence,ASS013,Operational Services,Revenue,Services,Human Resources
http://thanet.gov.uk/supplierspend,Thanet District Council,27/01/2015,376348,5210.60,,Ats Euromaster Ltd,ATS002,Operational Services,Revenue,Direct Transport Costs,Vehicle Management
http://thanet.gov.uk/supplierspend,Thanet District Council,27/01/2015,377175,1422.00,,Barcham Trees Plc,BAR021,Operational Services,Revenue,"Equip, Furniture And Materials",Horticultural
http://thanet.gov.uk/supplierspend,Thanet District Council,27/01/2015,376316,80.00,,Bowman Maintenance Contracting,BMC001,Operational Services,Revenue,"Equip, Furniture And Materials",Building Construction Material
http://thanet.gov.uk/supplierspend,Thanet District Council,27/01/2015,376316,162.50,,Bowman Maintenance Contracting,BMC001,Operational Services,Revenue,"Repairs,  Alter & Mtce - Build",Building Construction Material
http://thanet.gov.uk/supplierspend,Thanet District Council,27/01/2015,377447,864.88,,Bramling Construction Ltd,BRA020,Corporate Resources and S151,Balance Sheet,Capital Exp-Non Council Assets,Grants
http://thanet.gov.uk/supplierspend,Thanet District Council,27/01/2015,377094,3000.00,,Campbell Reith Hill Llp,CAM013,Corporate Resources and S151,Balance Sheet,Investment Property For Lease,Consultancy
http://thanet.gov.uk/supplierspend,Thanet District Council,27/01/2015,377356,19878.33,,Canterbury City Council,CAN004,East Kent Shared Services,Revenue,Grants & Subscriptions,Various Cats-Public Sector
http://thanet.gov.uk/supplierspend,Thanet District Council,27/01/2015,376942,1600.00,,Canterbury Scaffolding,CAN023,Corporate Resources and S151,Balance Sheet,Council Dwellings,Construction-Repair And Maint
http://thanet.gov.uk/supplierspend,Thanet District Council,27/01/2015,376758,350.00,,Capita Business Services Ltd,CAP001,Corporate Resources and S151,Revenue,Expenses,Human Resources
http://thanet.gov.uk/supplierspend,Thanet District Council,27/01/2015,377210,640.00,,Clikapad Limited,CLI033,Corporate Resources and S151,Revenue,"Equip, Furniture And Materials",Human Resources
http://thanet.gov.uk/supplierspend,Thanet District Council,27/01/2015,377210,765.00,,Clikapad Limited,CLI033,Corporate Resources and S151,Revenue,Services,Human Resources
http://thanet.gov.uk/supplierspend,Thanet District Council,27/01/2015,377135,66665.78,,Coombs (Canterbury) Ltd,COO033,Corporate Resources and S151,Balance Sheet,Other Land And Buildings-Hra,Construction-Repair And Maint
http://thanet.gov.uk/supplierspend,Thanet District Council,27/01/2015,376848,0.02,,Dover District Council,DOV001,East Kent Shared Services,Revenue,"Equip, Furniture And Materials",Various Cats-Public Sector
http://thanet.gov.uk/supplierspend,Thanet District Council,27/01/2015,376848,25028.46,,Dover District Council,DOV001,East Kent Shared Services,Revenue,Services,Various Cats-Public Sector
http://thanet.gov.uk/supplierspend,Thanet District Council,27/01/2015,376824,108084.00,,East Kent Housing Ltd,EKH002,Community Services,Revenue,Other Agencies,Housing Management
http://thanet.gov.uk/supplierspend,Thanet District Council,27/01/2015,376272,386.00,,Estuary Services Ltd,EST002,Operational Services,Revenue,Cont Hire & Operating Lease,Maritime Services
http://thanet.gov.uk/supplierspend,Thanet District Council,27/01/2015,377430,338.80,,Family Mosaic Housing,FAM001,Corporate Resources and S151,Balance Sheet,Capital Exp-Non Council Assets,Housing Management
http://thanet.gov.uk/supplierspend,Thanet District Council,27/01/2015,377432,1218.39,,Family Mosaic Housing,FAM001,Corporate Resources and S151,Balance Sheet,Capital Exp-Non Council Assets,Housing Management
http://thanet.gov.uk/supplierspend,Thanet District Council,27/01/2015,377442,2335.60,,Family Mosaic Housing,FAM001,Corporate Resources and S151,Balance Sheet,Capital Exp-Non Council Assets,Housing Management
http://thanet.gov.uk/supplierspend,Thanet District Council,27/01/2015,377446,1477.00,,Family Mosaic Housing,FAM001,Corporate Resources and S151,Balance Sheet,Capital Exp-Non Council Assets,Housing Management
http://thanet.gov.uk/supplierspend,Thanet District Council,27/01/2015,377090,8000.00,,Gardiner & Theobald Llp,GAR020,Corporate Resources and S151,Balance Sheet,Investment Property For Lease,Consultancy
http://thanet.gov.uk/supplierspend,Thanet District Council,27/01/2015,377091,3000.00,,Gardiner & Theobald Llp,GAR020,Corporate Resources and S151,Balance Sheet,Investment Property For Lease,Consultancy
http://thanet.gov.uk/supplierspend,Thanet District Council,27/01/2015,377092,2400.00,,Gardiner & Theobald Llp,GAR020,Corporate Resources and S151,Balance Sheet,Investment Property For Lease,Consultancy
http://thanet.gov.uk/supplierspend,Thanet District Council,27/01/2015,376622,640.00,,Gerlack & Thorne Ltd,GER001,Corporate Resources and S151,Balance Sheet,Repairs And Mtce Holding A/C,Construction-Repair And Maint
http://thanet.gov.uk/supplierspend,Thanet District Council,27/01/2015,376654,770.00,,Gulliver's Truck Hire Limited,GUL001,Operational Services,Revenue,Cont Hire & Operating Lease,Vehicle Management
http://thanet.gov.uk/supplierspend,Thanet District Council,27/01/2015,377093,5000.00,,Guy Hollaway Hythe Limited,HOL033,Corporate Resources and S151,Balance Sheet,Investment Property For Lease,Construction-Repair And Maint
http://thanet.gov.uk/supplierspend,Thanet District Council,27/01/2015,377119,699.00,,Hbinfo Limited,HBI001,East Kent Shared Services,Revenue,Grants & Subscriptions,Financial Services
http://thanet.gov.uk/supplierspend,Thanet District Council,27/01/2015,377238,1300.00,,Hi Way Services Ltd,HIW002,Operational Services,Revenue,"Repairs,  Alter & Mtce - Build",Highway Equipment And Material
http://thanet.gov.uk/supplierspend,Thanet District Council,27/01/2015,377392,375.00,,Hi Way Services Ltd,HIW002,Operational Services,Revenue,"Repairs,  Alter & Mtce - Build",Highway Equipment And Material
http://thanet.gov.uk/supplierspend,Thanet District Council,27/01/2015,377343,2627.45,,Holden & Co Llp,HOL034,Community Services,Revenue,Services,Non Trade Payee
http://thanet.gov.uk/supplierspend,Thanet District Council,27/01/2015,376010,258.98,,Hr Go Recruitment Ltd,HRG002,Operational Services,Revenue,Agency Staff,Human Resources
http://thanet.gov.uk/supplierspend,Thanet District Council,27/01/2015,376073,1017.57,,Hydro-Cleansing Ltd,HYD012,Operational Services,Revenue,Cleaning & Domestic Supplies,Building Construction Material
http://thanet.gov.uk/supplierspend,Thanet District Council,27/01/2015,377124,29650.00,,Idox Software  Limited,IDO001,Corporate Resources and S151,Balance Sheet,Plant And Equipment,ICT
http://thanet.gov.uk/supplierspend,Thanet District Council,27/01/2015,376781,2216.80,,Imperial Civil Enforcement Sols Ltd,IMP008,Operational Services,Revenue,Communications & Computing,Street And Traffic Management
http://thanet.gov.uk/supplierspend,Thanet District Council,27/01/2015,377195,305.25,,Insight Direct (Uk) Ltd,INS013,East Kent Shared Services,Revenue,Communications & Computing,ICT
http://thanet.gov.uk/supplierspend,Thanet District Council,27/01/2015,377196,1221.00,,Insight Direct (Uk) Ltd,INS013,East Kent Shared Services,Revenue,Communications & Computing,ICT
http://thanet.gov.uk/supplierspend,Thanet District Council,27/01/2015,377458,788.26,,Insight Direct (Uk) Ltd,INS013,East Kent Shared Services,Revenue,Communications & Computing,ICT
http://thanet.gov.uk/supplierspend,Thanet District Council,27/01/2015,377371,217.50,,Jewson Ltd,JEW001,Operational Services,Revenue,"Equip, Furniture And Materials",Building Construction Material
http://thanet.gov.uk/supplierspend,Thanet District Council,27/01/2015,377444,831.84,,John Gale,GAL001,Corporate Resources and S151,Balance Sheet,Capital Exp-Non Council Assets,Grants
http://thanet.gov.uk/supplierspend,Thanet District Council,27/01/2015,377386,1775.00,,Jump It Recruitment Solutions Ltd,JUM001,East Kent Shared Services,Revenue,Agency Staff,Human Resources
http://thanet.gov.uk/supplierspend,Thanet District Council,27/01/2015,376279,540.00,,Kent County Council,KCC002,Community Services,Revenue,Services,Various Cats-Public Sector
http://thanet.gov.uk/supplierspend,Thanet District Council,27/01/2015,377562,86201.00,,Kent County Council,KCC002,Community Services,Revenue,Grants & Subscriptions,Various Cats-Public Sector
http://thanet.gov.uk/supplierspend,Thanet District Council,27/01/2015,377564,19505.09,,Kent County Council,KCC002,Corporate Resources and S151,Balance Sheet,Insurance Holding Account,Various Cats-Public Sector
http://thanet.gov.uk/supplierspend,Thanet District Council,27/01/2015,376485,27559.24,,Kent County Council (Kcs),KCC003,Operational Services,Revenue,Direct Transport Costs,Facilities And Mangement Serv
http://thanet.gov.uk/supplierspend,Thanet District Council,27/01/2015,376486,28838.67,,Kent County Council (Kcs),KCC003,Operational Services,Revenue,Direct Transport Costs,Facilities And Mangement Serv
http://thanet.gov.uk/supplierspend,Thanet District Council,27/01/2015,377375,1420.15,,Kent County Council (Kcs),KCC003,Operational Services,Revenue,Energy Costs,Facilities And Mangement Serv
http://thanet.gov.uk/supplierspend,Thanet District Council,27/01/2015,377378,1353.74,,Kent County Council (Kcs),KCC003,Operational Services,Revenue,Energy Costs,Facilities And Mangement Serv
http://thanet.gov.uk/supplierspend,Thanet District Council,27/01/2015,377438,10119.85,,Kings Home Improvements,KIN023,Corporate Resources and S151,Balance Sheet,Capital Exp-Non Council Assets,Grants
http://thanet.gov.uk/supplierspend,Thanet District Council,27/01/2015,377336,400.00,,Km Media Group Limited,KMM001,Community Services,Revenue,Miscellaneous Expenses,Facilities And Mangement Serv
http://thanet.gov.uk/supplierspend,Thanet District Council,27/01/2015,377239,482.45,,L W Burt & Son Ltd,BUR027,Community Services,Revenue,"Repairs,  Alter & Mtce - Build",Construction-Repair And Maint
http://thanet.gov.uk/supplierspend,Thanet District Council,27/01/2015,377173,537.80,,Loomis Uk Ltd,LOO002,Operational Services,Revenue,Services,Financial Services
http://thanet.gov.uk/supplierspend,Thanet District Council,27/01/2015,377373,376.00,,Lyreco Uk Limited,LYR001,Community Services,Revenue,"Print, Stat And Gen Off Exps",Stationery
http://thanet.gov.uk/supplierspend,Thanet District Council,27/01/2015,376752,415.21,,Mears Ltd,MEA003,Community Services,Revenue,"Repairs,  Alter & Mtce - Build",Construction-Repair And Maint
http://thanet.gov.uk/supplierspend,Thanet District Council,27/01/2015,376753,858.10,,Mears Ltd,MEA003,Community Services,Revenue,"Repairs,  Alter & Mtce - Build",Construction-Repair And Maint
http://thanet.gov.uk/supplierspend,Thanet District Council,27/01/2015,376754,2115.95,,Mears Ltd,MEA003,Community Services,Revenue,"Repairs,  Alter & Mtce - Build",Construction-Repair And Maint
http://thanet.gov.uk/supplierspend,Thanet District Council,27/01/2015,377099,16104.85,,Mears Ltd,MEA003,Corporate Resources and S151,Balance Sheet,Repairs And Mtce Holding A/C,Construction-Repair And Maint
http://thanet.gov.uk/supplierspend,Thanet District Council,27/01/2015,377100,9570.05,,Mears Ltd,MEA003,Corporate Resources and S151,Balance Sheet,Repairs And Mtce Holding A/C,Construction-Repair And Maint
http://thanet.gov.uk/supplierspend,Thanet District Council,27/01/2015,377101,11395.76,,Mears Ltd,MEA003,Corporate Resources and S151,Balance Sheet,Repairs And Mtce Holding A/C,Construction-Repair And Maint
http://thanet.gov.uk/supplierspend,Thanet District Council,27/01/2015,377105,1251.27,,Mears Ltd,MEA003,Operational Services,Revenue,"Repairs,  Alter & Mtce - Build",Construction-Repair And Maint
http://thanet.gov.uk/supplierspend,Thanet District Council,27/01/2015,377106,57.72,,Mears Ltd,MEA003,Community Services,Revenue,"Repairs,  Alter & Mtce - Build",Construction-Repair And Maint
http://thanet.gov.uk/supplierspend,Thanet District Council,27/01/2015,377106,1233.26,,Mears Ltd,MEA003,Operational Services,Revenue,"Repairs,  Alter & Mtce - Build",Construction-Repair And Maint
http://thanet.gov.uk/supplierspend,Thanet District Council,27/01/2015,377107,579.16,,Mears Ltd,MEA003,Operational Services,Revenue,"Repairs,  Alter & Mtce - Build",Construction-Repair And Maint
http://thanet.gov.uk/supplierspend,Thanet District Council,27/01/2015,377384,5679.82,,Mears Ltd,MEA003,Community Services,Revenue,"Repairs,  Alter & Mtce - Build",Construction-Repair And Maint
http://thanet.gov.uk/supplierspend,Thanet District Council,27/01/2015,377385,1859.71,,Mears Ltd,MEA003,Community Services,Revenue,"Repairs,  Alter & Mtce - Build",Construction-Repair And Maint
http://thanet.gov.uk/supplierspend,Thanet District Council,27/01/2015,377390,2915.21,,Mears Ltd,MEA003,Corporate Resources and S151,Balance Sheet,Repairs And Mtce Holding A/C,Construction-Repair And Maint
http://thanet.gov.uk/supplierspend,Thanet District Council,27/01/2015,377487,101.01,,Mears Ltd,MEA003,Community Services,Revenue,"Repairs,  Alter & Mtce - Build",Construction-Repair And Maint
http://thanet.gov.uk/supplierspend,Thanet District Council,27/01/2015,377487,569.48,,Mears Ltd,MEA003,Operational Services,Revenue,"Repairs,  Alter & Mtce - Build",Construction-Repair And Maint
http://thanet.gov.uk/supplierspend,Thanet District Council,27/01/2015,377489,39.69,,Mears Ltd,MEA003,Community Services,Revenue,"Repairs,  Alter & Mtce - Build",Construction-Repair And Maint
http://thanet.gov.uk/supplierspend,Thanet District Council,27/01/2015,377489,563.25,,Mears Ltd,MEA003,Operational Services,Revenue,"Repairs,  Alter & Mtce - Build",Construction-Repair And Maint
http://thanet.gov.uk/supplierspend,Thanet District Council,27/01/2015,377490,1435.97,,Mears Ltd,MEA003,Operational Services,Revenue,"Repairs,  Alter & Mtce - Build",Construction-Repair And Maint
http://thanet.gov.uk/supplierspend,Thanet District Council,27/01/2015,377491,1510.63,,Mears Ltd,MEA003,Operational Services,Revenue,"Repairs,  Alter & Mtce - Build",Construction-Repair And Maint
http://thanet.gov.uk/supplierspend,Thanet District Council,27/01/2015,377492,150.56,,Mears Ltd,MEA003,Community Services,Revenue,"Repairs,  Alter & Mtce - Build",Construction-Repair And Maint
http://thanet.gov.uk/supplierspend,Thanet District Council,27/01/2015,377492,237.39,,Mears Ltd,MEA003,Operational Services,Revenue,"Repairs,  Alter & Mtce - Build",Construction-Repair And Maint
http://thanet.gov.uk/supplierspend,Thanet District Council,27/01/2015,376388,3917.85,,Med Clean South Ltd,MED015,Operational Services,Revenue,Cleaning & Domestic Supplies,Cleaning And Janitorial
http://thanet.gov.uk/supplierspend,Thanet District Council,27/01/2015,377351,189.53,,Morgan Jones Ltd,MOR001,Corporate Resources and S151,Revenue,Services,Human Resources
http://thanet.gov.uk/supplierspend,Thanet District Council,27/01/2015,377351,189.52,,Morgan Jones Ltd,MOR001,Community Services,Revenue,Services,Human Resources
http://thanet.gov.uk/supplierspend,Thanet District Council,27/01/2015,377177,622.50,,Mr Darren Osborne,OSB008,Community Services,Revenue,Cleaning & Domestic Supplies,Cleaning And Janitorial
http://thanet.gov.uk/supplierspend,Thanet District Council,27/01/2015,377177,30.00,,Mr Darren Osborne,OSB008,Operational Services,Revenue,Cleaning & Domestic Supplies,Cleaning And Janitorial
http://thanet.gov.uk/supplierspend,Thanet District Council,27/01/2015,377054,8100.00,,Mti Technology Ltd,MTI001,East Kent Shared Services,Revenue,Communications & Computing,ICT
http://thanet.gov.uk/supplierspend,Thanet District Council,27/01/2015,376275,3500.00,,Muf Architecture / Art Llp,MUF001,Community Services,Revenue,"Equip, Furniture And Materials",Street And Traffic Management
http://thanet.gov.uk/supplierspend,Thanet District Council,27/01/2015,377388,425.25,,National Boat Shows Ltd,NAT001,Operational Services,Revenue,Miscellaneous Expenses,Arts And Leisure Services
http://thanet.gov.uk/supplierspend,Thanet District Council,27/01/2015,377404,517.39,,National Boat Shows Ltd,NAT001,Operational Services,Revenue,Miscellaneous Expenses,Arts And Leisure Services
http://thanet.gov.uk/supplierspend,Thanet District Council,27/01/2015,377561,2000.00,,Neopost Ltd Credifon,NEO002,Community Services,Revenue,Communications & Computing,Mail Services
http://thanet.gov.uk/supplierspend,Thanet District Council,27/01/2015,377131,1409.87,,Northgate Inf Solutions Uk Ltd,NOR018,East Kent Shared Services,Revenue,Communications & Computing,ICT
http://thanet.gov.uk/supplierspend,Thanet District Council,27/01/2015,377349,32716.00,,Northgate Inf Solutions Uk Ltd,NOR018,Corporate Resources and S151,Revenue,Communications & Computing,ICT
http://thanet.gov.uk/supplierspend,Thanet District Council,27/01/2015,377341,1653.30,,Patrol,PAT004,Operational Services,Revenue,Services,Street And Traffic Management
http://thanet.gov.uk/supplierspend,Thanet District Council,27/01/2015,377055,261.20,,Phoenix Software Ltd,PHO002,East Kent Shared Services,Revenue,Communications & Computing,ICT
http://thanet.gov.uk/supplierspend,Thanet District Council,27/01/2015,377437,8252.90,,Precept Cs Ltd,PRE032,Corporate Resources and S151,Balance Sheet,Capital Exp-Non Council Assets,Grants
http://thanet.gov.uk/supplierspend,Thanet District Council,27/01/2015,376950,3083.43,,Premier Storage & Office Solns Ltd,PRE034,Operational Services,Revenue,"Repairs,  Alter & Mtce - Build",Facilities And Mangement Serv
http://thanet.gov.uk/supplierspend,Thanet District Council,27/01/2015,377431,315.00,,R Cannon,CAN007,Operational Services,Revenue,Services,Maritime Services
http://thanet.gov.uk/supplierspend,Thanet District Council,27/01/2015,377097,1450.00,,Ramboll Uk Limited,RAM043,Corporate Resources and S151,Balance Sheet,Other Land And Buildings-Hra,Facilities And Mangement Serv
http://thanet.gov.uk/supplierspend,Thanet District Council,27/01/2015,377197,2615.79,,Royal Mail,ROY004,Community Services,Revenue,Communications & Computing,Mail Services
http://thanet.gov.uk/supplierspend,Thanet District Council,27/01/2015,377110,3082.75,,S W Flooring (South East) Limited,SWF002,Community Services,Revenue,Fixtures & Fittings,Building Construction Material
http://thanet.gov.uk/supplierspend,Thanet District Council,27/01/2015,377134,12450.00,,Saville Jones Architects Limited,SAV008,Community Services,Revenue,Services,Consultancy
http://thanet.gov.uk/supplierspend,Thanet District Council,27/01/2015,376944,900.00,,Sellick Partnership Ltd,SEL011,Community Services,Revenue,Services,Human Resources
http://thanet.gov.uk/supplierspend,Thanet District Council,27/01/2015,377065,740.38,,Serco Ltd,SER002,Operational Services,Revenue,"Equip, Furniture And Materials",Building Construction Material
http://thanet.gov.uk/supplierspend,Thanet District Council,27/01/2015,377448,327.00,,Shelter Trading Limited,SHE002,East Kent Shared Services,Revenue,"Print, Stat And Gen Off Exps",Human Resources
http://thanet.gov.uk/supplierspend,Thanet District Council,27/01/2015,377169,1006.00,,Shulmans Llp,SHU004,Community Services,Revenue,Services,Legal Services
http://thanet.gov.uk/supplierspend,Thanet District Council,27/01/2015,377170,1500.00,,Sjr Pm Solutions Limited,SJR001,East Kent Shared Services,Revenue,Services,ICT
http://thanet.gov.uk/supplierspend,Thanet District Council,27/01/2015,377180,354.04,,Southern Water,SWA001,Operational Services,Revenue,Water Services,Utilities
http://thanet.gov.uk/supplierspend,Thanet District Council,27/01/2015,377190,988.79,,Southern Water,SWA001,Operational Services,Revenue,Water Services,Utilities
http://thanet.gov.uk/supplierspend,Thanet District Council,27/01/2015,377194,291.10,,Southern Water,SWA001,Operational Services,Revenue,Water Services,Utilities
http://thanet.gov.uk/supplierspend,Thanet District Council,27/01/2015,377205,929.25,,Southern Water,SWA001,Operational Services,Revenue,Water Services,Utilities
http://thanet.gov.uk/supplierspend,Thanet District Council,27/01/2015,376615,390.00,,Sparshatts Of Kent Ltd,SPA008,Operational Services,Revenue,Direct Transport Costs,Vehicle Management
http://thanet.gov.uk/supplierspend,Thanet District Council,27/01/2015,376127,2814.00,,Swale Heating Ltd,SWA006,Corporate Resources and S151,Balance Sheet,Repairs And Mtce Holding A/C,Building Construction Material
http://thanet.gov.uk/supplierspend,Thanet District Council,27/01/2015,376253,1948.70,,Swale Heating Ltd,SWA006,Corporate Resources and S151,Balance Sheet,Repairs And Mtce Holding A/C,Building Construction Material
http://thanet.gov.uk/supplierspend,Thanet District Council,27/01/2015,376254,1539.00,,Swale Heating Ltd,SWA006,Corporate Resources and S151,Balance Sheet,Repairs And Mtce Holding A/C,Building Construction Material
http://thanet.gov.uk/supplierspend,Thanet District Council,27/01/2015,376255,2014.02,,Swale Heating Ltd,SWA006,Corporate Resources and S151,Balance Sheet,Repairs And Mtce Holding A/C,Building Construction Material
http://thanet.gov.uk/supplierspend,Thanet District Council,27/01/2015,376256,1747.70,,Swale Heating Ltd,SWA006,Corporate Resources and S151,Balance Sheet,Repairs And Mtce Holding A/C,Building Construction Material
http://thanet.gov.uk/supplierspend,Thanet District Council,27/01/2015,376257,1677.35,,Swale Heating Ltd,SWA006,Corporate Resources and S151,Balance Sheet,Repairs And Mtce Holding A/C,Building Construction Material
http://thanet.gov.uk/supplierspend,Thanet District Council,27/01/2015,376258,1677.40,,Swale Heating Ltd,SWA006,Corporate Resources and S151,Balance Sheet,Repairs And Mtce Holding A/C,Building Construction Material
http://thanet.gov.uk/supplierspend,Thanet District Council,27/01/2015,376259,1747.70,,Swale Heating Ltd,SWA006,Corporate Resources and S151,Balance Sheet,Repairs And Mtce Holding A/C,Building Construction Material
http://thanet.gov.uk/supplierspend,Thanet District Council,27/01/2015,376260,1417.05,,Swale Heating Ltd,SWA006,Corporate Resources and S151,Balance Sheet,Repairs And Mtce Holding A/C,Building Construction Material
http://thanet.gov.uk/supplierspend,Thanet District Council,27/01/2015,376261,1677.35,,Swale Heating Ltd,SWA006,Corporate Resources and S151,Balance Sheet,Repairs And Mtce Holding A/C,Building Construction Material
http://thanet.gov.uk/supplierspend,Thanet District Council,27/01/2015,376262,1994.93,,Swale Heating Ltd,SWA006,Corporate Resources and S151,Balance Sheet,Repairs And Mtce Holding A/C,Building Construction Material
http://thanet.gov.uk/supplierspend,Thanet District Council,27/01/2015,376263,1677.35,,Swale Heating Ltd,SWA006,Corporate Resources and S151,Balance Sheet,Repairs And Mtce Holding A/C,Building Construction Material
http://thanet.gov.uk/supplierspend,Thanet District Council,27/01/2015,376264,1417.05,,Swale Heating Ltd,SWA006,Corporate Resources and S151,Balance Sheet,Repairs And Mtce Holding A/C,Building Construction Material
http://thanet.gov.uk/supplierspend,Thanet District Council,27/01/2015,376265,2180.85,,Swale Heating Ltd,SWA006,Corporate Resources and S151,Balance Sheet,Repairs And Mtce Holding A/C,Building Construction Material
http://thanet.gov.uk/supplierspend,Thanet District Council,27/01/2015,376266,3030.08,,Swale Heating Ltd,SWA006,Corporate Resources and S151,Balance Sheet,Repairs And Mtce Holding A/C,Building Construction Material
http://thanet.gov.uk/supplierspend,Thanet District Council,27/01/2015,376342,24946.74,,Swale Heating Ltd,SWA006,Corporate Resources and S151,Balance Sheet,Repairs And Mtce Holding A/C,Building Construction Material
http://thanet.gov.uk/supplierspend,Thanet District Council,27/01/2015,376420,1500.00,,Tennant Uk Cleaning Solutions Ltd,TEN006,Operational Services,Revenue,"Equip, Furniture And Materials",Vehicle Management
http://thanet.gov.uk/supplierspend,Thanet District Council,27/01/2015,376796,348.04,,Tennant Uk Cleaning Solutions Ltd,TEN006,Operational Services,Revenue,"Equip, Furniture And Materials",Vehicle Management
http://thanet.gov.uk/supplierspend,Thanet District Council,27/01/2015,376797,345.00,,Tennants Distribution Limited,TEN005,Operational Services,Revenue,Direct Transport Costs,Vehicle Management
http://thanet.gov.uk/supplierspend,Thanet District Council,27/01/2015,377563,750.00,,Thanet Swim Club,TSW001,Community Services,Revenue,Grants & Subscriptions,Grants
http://thanet.gov.uk/supplierspend,Thanet District Council,27/01/2015,376620,2437.49,,The Glenwood Hotel,GLE007,Community Services,Revenue,Services,Housing Management
http://thanet.gov.uk/supplierspend,Thanet District Council,27/01/2015,376621,1208.31,,The Glenwood Hotel,GLE007,Community Services,Revenue,Services,Housing Management
http://thanet.gov.uk/supplierspend,Thanet District Council,27/01/2015,377096,7044.49,,The Gpm Partnership Limited,GPM001,Corporate Resources and S151,Balance Sheet,Other Land And Buildings-Hra,Consultancy
http://thanet.gov.uk/supplierspend,Thanet District Council,27/01/2015,377118,3000.00,,The Mediation Service,MED018,Community Services,Revenue,Services,Human Resources
http://thanet.gov.uk/supplierspend,Thanet District Council,27/01/2015,377464,1700.00,,Thomson Snell & Passmore,THO016,Community Services,Revenue,Services,Legal Services
http://thanet.gov.uk/supplierspend,Thanet District Council,27/01/2015,376946,325866.00,,Topbond Plc,TOP010,Corporate Resources and S151,Balance Sheet,Other Land And Buildings-Hra,Construction-Repair And Maint
http://thanet.gov.uk/supplierspend,Thanet District Council,27/01/2015,377445,6932.00,,Trueden Disability Adaptations Ltd,TRU012,Corporate Resources and S151,Balance Sheet,Capital Exp-Non Council Assets,Grants
http://thanet.gov.uk/supplierspend,Thanet District Council,27/01/2015,377058,80.67,,Veolia Es (Uk) Ltd,VEO001,Corporate Resources and S151,Balance Sheet,Rechargeable Works,Environmental Services
http://thanet.gov.uk/supplierspend,Thanet District Council,27/01/2015,377058,1286.47,,Veolia Es (Uk) Ltd,VEO001,Operational Services,Revenue,Cleaning & Domestic Supplies,Environmental Services
http://thanet.gov.uk/supplierspend,Thanet District Council,28/01/2015,377737,25000.00,,Moore Blatch Llp (Client Account),MOO010,Corporate Resources and S151,Balance Sheet,Other Land And Buildings-Hra,Non Trade Payee
http://thanet.gov.uk/supplierspend,Thanet District Council,28/01/2015,377736,29196.00,,Parry Law,PAR064,Corporate Resources and S151,Balance Sheet,Other Land And Buildings-Hra,Legal Services
http://thanet.gov.uk/supplierspend,Thanet District Council,28/01/2015,377749,1905561.00,,Secretary Of State,SEC003,Corporate Resources and S151,Balance Sheet,Business Rates Retention,Government Agencies
http://thanet.gov.uk/supplierspend,Thanet District Council,30/01/2015,377836,6749.78,,Dropbox Inc,DRO001,East Kent Shared Services,Revenue,Communications & Computing,ICT
http://thanet.gov.uk/supplierspend,Thanet District Council,30/01/2015,377837,230.00,,H M Land Registry,HML002,Community Services,Revenue,Services,Government Agencies
http://thanet.gov.uk/supplierspend,Thanet District Council,30/01/2015,377837,12.00,,H M Land Registry,HML002,Operational Services,Revenue,Services,Government Agencies
http://thanet.gov.uk/supplierspend,Thanet District Council,30/01/2015,377837,18.00,,H M Land Registry,HML002,East Kent Shared Services,Revenue,Services,Government Agencies
http://thanet.gov.uk/supplierspend,Thanet District Council,30/01/2015,377839,4200.00,,Julian Paci,PAC005,Community Services,Revenue,Grants & Subscriptions,Grants
